Cogmind - Beta 16 @@@ ROGUE MODE // 2026.01.03 @ 01:15:08 Player: H3-MLN Result: Buried in Protoforge collapse! Performance ------------- Evolutions (8) 4000 Regions Visited (26) 5200 Robots Destroyed (321) 1605 Value Destroyed (17580) 17580 Prototype IDs (172) 3440 Alien Tech Used (6) 1200 Bonus (20530) 20530 TOTAL SCORE: 53555 Bonus ------- High Alert Combat Kills 6643 Follower Combat Kills 1526 Registered with UFD 300 Met Optimus in HQ 500 Met Zhirov 300 MAIN.C Attacked Warlord 500 Scanned by Researcher 500 Met Optimus at Protoforge 1000 Executed Drillbomb Mission 10000 Friendly Fire -739 Cogmind --------- Core Integrity 0/1450 Matter 280/300 Energy 1124/1520 System Corruption 35% Temperature Cool (0) Movement Hovering (36) Location -2/Protoforge Parts ------- > --- POWER (2) -------- Hybrid Graviton Reactor Concept Zero-point Core > --- PROPULSION (7) --- Experimental Antigrav System Gravjet Array Gravjet Array Concept Combat Aerolev Unit Concept Gyrokinetic System > --- UTILITY (12) ----- Concept Phasing Heat Sink Concept Antigrav Storage Unit Concept Dimensional Manipulator Advanced Sensor Array Advanced Signal Interpreter Concept Countertargeting System Experimental Core Analyzer Concept Reaction Jets SHELL Armor > --- WEAPON (2) ------- Concept Heavy Railcannon > --- INVENTORY (25) --- Concept Zero-point Core Experimental Antigrav System Concept Phasing Heat Sink Concept Chromion Battery (800) Concept NT7 Matterbank (750) Concept NT7 Matterbank (750) Experimental Kinecellerator Graphene Brace Concept Matter Streamer Concept Impact Drone Bay (6/6) Concept Plasma Driver Concept Plasma Driver Concept Plasma Driver Z-bomb Delivery System Peak State ------------ > --- POWER ------------ Hybrid Graviton Reactor Concept Zero-point Core > --- PROPULSION ------- Experimental Antigrav System Gravjet Array Gravjet Array Concept Combat Aerolev Unit Concept Gyrokinetic System > --- UTILITY ---------- Concept Phasing Heat Sink Concept Antigrav Storage Unit Concept Dimensional Manipulator Concept Countertargeting System Experimental Core Analyzer Advanced Kinecellerator Concept Core Shell SHELL Armor Concept Navigation Harness > --- WEAPON ----------- Concept Heavy Railcannon > --- INVENTORY -------- Concept Zero-point Core Experimental Antigrav System Gravjet Array Concept Phasing Heat Sink Concept Chromion Battery Concept Chromion Battery Concept NT7 Matterbank Concept NT7 Matterbank Experimental Kinecellerator Concept Reaction Jets Concept Cloak Mesh Concept Matter Streamer Concept Impact Drone Bay Transdimensional Reconstructor Subatomic Replicator Concept Plasma Driver Concept Plasma Driver Concept Plasma Driver Concept Helical Railcannon Concept Heavy Railcannon Z-bomb Delivery System [Rating: 282] Favorites ----------- Power Backup Power III Engine Backup Power III Power Core Concept Zero-point Core Reactor Hybrid Graviton Reactor Propulsion Improved Treads Treads Improved Treads Leg Biometal Leg Wheel Wheel Hover Unit Gravjet Array Flight Unit Cooled Impulse Thruster Utility Concept Phasing Heat Sink Device Concept Phasing Heat Sink Storage High-capacity Storage Unit Processor Enhanced Optical Array Hackware Ghost Barrier Protection SHELL Armor Weapon Improved Assault Rifle Energy Gun Variable Charge Gun Energy Cannon Concept Plasma Driver Ballistic Gun Improved Assault Rifle Ballistic Cannon Light Cannon Launcher Smartbomb Launcher Special Weapon Mining Laser Impact Weapon Heavy Hammer Slashing Weapon Sigix Broadsword Special Melee Weapon Datajack Build | -11 -10 -10 -9 -9 -9 -9 -6 -6 -6 -5 -5 -5 -5 -4 -4 -4 -4 -4 -4 -4 -3 -3 -3 -2 -2 -2 ------- Run | Yrd Mat Min Mat Sto Rec Scr Fac Was Fac Fac Upp Upp War Pro Fac Was Fac Upp Upp Zhi Pro Res Tes Res Qua Frg Slots Evolved 16 | . . . 2 . . . 6 . . 2 . . . . 2 . . . . . . 2 . 2 . . Power 1 | . . . . . . . . . . 1 . . . . . . . . . . . . . . . . Propulsion 5 | . . . 2 . . . 1 . . 1 . . . . 1 . . . . . . . . . . . Utility 10 | . . . . . . . 5 . . . . . . . 1 . . . . . . 2 . 2 . . Weapon . | . . . . . . . . . . . . . . . . . . . . . . . . . . . Parts Attached 290 | 8 6 6 28 8 2 5 9 . 10 15 5 . 12 4 9 4 14 6 1 8 2 8 22 10 9 79 Power 28 | 1 . . 4 1 . . 2 . 1 2 . . . 1 3 . . . 1 1 . 1 1 1 2 6 Engine 14 | 1 . . 4 1 . . 2 . 1 1 . . . 1 2 . . . . . . . 1 . . . Core 6 | . . . . . . . . . . 1 . . . . 1 . . . 1 . . 1 . . . 2 Reactor 8 | . . . . . . . . . . . . . . . . . . . . 1 . . . 1 2 4 Propulsion 84 | 3 2 1 14 . . 3 1 . 3 6 3 . 3 . 3 3 4 1 . 3 . 2 3 1 1 24 Treads 17 | 1 1 1 9 . . . . . . 2 . . . . . 1 . . . . . . . . . 2 Leg 14 | . . . 2 . . . . . . . . . . . . . . . . . . . 1 . . 11 Wheel 5 | 2 1 . 2 . . . . . . . . . . . . . . . . . . . . . . . Hover 18 | . . . . . . . . . . 2 2 . 1 . . 1 . . . . . . . . 1 11 Flight 30 | . . . 1 . . 3 1 . 3 2 1 . 2 . 3 1 4 1 . 3 . 2 2 1 . . Utility 117 | 2 1 1 4 3 . 1 5 . 3 5 1 . 6 3 2 . 7 4 . 4 1 5 10 7 4 38 Device 60 | 1 . . . 1 . . . . 2 2 1 . 4 2 2 . 6 2 . 2 1 2 5 2 4 21 Storage 9 | 1 1 . . . . 1 . . . . . . . . . . . . . . . . 2 1 . 3 Processor 23 | . . . . . . . 4 . 1 3 . . . 1 . . . 1 . . . 2 1 2 . 8 Hackware 10 | . . . . 1 . . 1 . . . . . 1 . . . 1 1 . 1 . 1 . 2 . 1 Protection 15 | . . 1 4 1 . . . . . . . . 1 . . . . . . 1 . . 2 . . 5 Artifact . | . . . . . . . . . . . . . . . . . . . . . . . . . . . Weapon 61 | 2 3 4 6 4 2 1 1 . 3 2 1 . 3 . 1 1 3 1 . . 1 . 8 1 2 11 Energy Gun 12 | 1 . 2 3 . . . . . . 1 . . . . . . 1 . . . . . 2 . . 2 Energy Cannon 9 | . . . 1 . . . . . 2 . . . 2 . . . . . . . . . 1 . . 3 Ballistic Gun 10 | 1 1 . 1 2 . . . . . . 1 . . . . . 1 . . . 1 . 1 . . 1 Ballistic Cannon 9 | . 1 2 . . . . . . . . . . . . . 1 . . . . . . 1 1 . 3 Launcher 12 | . 1 . 1 1 . . . . 1 1 . . . . 1 . 1 1 . . . . 2 . . 2 Special Weapon 3 | . . . . 1 . 1 . . . . . . 1 . . . . . . . . . . . . . Impact Weapon 2 | . . . . . 1 . . . . . . . . . . . . . . . . . . . 1 . Slashing Weapon 3 | . . . . . . . 1 . . . . . . . . . . . . . . . 1 . 1 . Piercing Weapon . | . . . . . . . . . . . . . . . . . . . . . . . . . . . Special Melee Weapon 1 | . . . . . 1 . . . . . . . . . . . . . . . . . . . . . Unidentified Prototypes 59 | . . . 5 1 . 1 . . 3 . . . 9 . . 2 2 . . 3 . . 14 2 3 14 Corrupted Parts 1 | . . . . . . . . . . . . . . . . . . 1 . . . . . . . . System Corruption 5 | . . . . . . . . . . . . . . . . . . 5 . . . . . . . . Parts Lost 75 | . . 8 7 . . . . . 12 7 . . . . 4 . 1 2 . . . 4 4 2 3 21 Power 11 | . . 1 1 . . . . . 2 2 . . . . 1 . . 1 . . . 1 1 . . 1 Propulsion 34 | . . 3 3 . . . . . 7 3 . . . . 2 . . 1 . . . 1 1 1 1 11 Utility 19 | . . 1 1 . . . . . 3 1 . . . . . . 1 . . . . 1 2 1 2 6 Weapon 11 | . . 3 2 . . . . . . 1 . . . . 1 . . . . . . 1 . . . 3 Highest Loss Streak 8 | . . 8 6 . . . . . 7 6 . . . . 2 . 1 1 . . . 3 2 1 2 4 To Critical Strikes . | . . . . . . . . . . . . . . . . . . . . . . . . . . . Average Backups 12 | 4 8 15 18 19 19 18 11 13 12 4 4 5 4 4 4 5 4 4 4 3 4 3 6 6 7 16 Power . | . . . . . . . . . . . 1 1 . . . . . . . . . . . . . 1 Propulsion 1 | 2 3 3 4 6 4 3 1 1 1 1 2 . . . . . . . . . . . . . . . Utility 4 | . 1 4 6 4 5 5 2 3 3 1 . 2 1 1 2 2 2 1 1 . 1 1 2 1 2 9 Weapon 4 | 1 3 6 6 8 8 8 3 5 4 1 1 2 2 2 2 3 2 3 3 2 2 1 2 3 3 4 Tool/Special . | . . . . . . . . . . . . . . . . . . . . . . . . . . . Unused Backups 66 | . 3 1 10 3 3 5 . 1 8 3 . . 4 . 1 . 1 . . . . . . . . 23 Power 4 | . 1 . . . . . . . . 1 . . 1 . . . . . . . . . . . . 1 Propulsion 9 | . 1 . 3 2 1 . . . . . . . . . . . . . . . . . . . . 2 Utility 38 | . 1 1 7 1 2 3 . 1 3 2 . . 2 . . . 1 . . . . . . . . 14 Weapon 11 | . . . . . . 2 . . 2 . . . 1 . 1 . . . . . . . . . . 5 Tool/Special 4 | . . . . . . . . . 3 . . . . . . . . . . . . . . . . 1 Average Slot Usage (%) 86 | . 100 98 92 99 100 95 66 80 74 42 75 88 92 93 82 92 88 84 86 84 94 90 92 83 84 77 Engine 6 | . 14 12 7 11 11 10 3 6 4 1 5 5 9 11 6 9 10 7 5 5 5 2 2 . 1 . Reactor 1 | . . . . . . . . . . . . . . . . . . . . 3 5 4 3 4 4 4 Treads 11 | . 15 13 29 44 44 40 . . . . . . . . . . . . . . . . . . . . Leg 2 | . . . 2 . . . . . . . . . . . . . . . . . . . . . . 7 Wheel 1 | . 12 14 8 . . . . . . . . . . . . . . . . . . . . . . . Hover 3 | . . . . . . . . . . 6 . 11 3 . . 2 . . . . . . . . 2 9 Flight 9 | . . . . . . 3 31 33 28 5 16 17 25 29 25 27 26 25 26 29 31 27 27 23 17 1 Device 12 | . 14 4 . 1 . . . . 2 1 5 11 15 16 18 21 17 29 31 29 26 26 19 12 17 20 Storage 6 | . 14 14 11 11 11 11 6 6 4 . . . . . . . . . . . . . 1 8 8 5 Processor 7 | . . . . . . . 20 26 24 19 34 29 21 17 15 15 13 2 . . . 2 4 3 4 8 Hackware 3 | . . . . . . . 1 6 3 . . . 2 5 5 5 8 8 10 10 15 16 19 19 17 1 Protection 4 | . . 9 10 9 11 10 . . . . . . . . . . . . . . . . 1 4 2 6 Energy Gun 2 | . 4 . 10 3 . . . . . 1 5 5 4 5 5 5 3 . . . . . . . . . Ballistic Gun 4 | . 14 1 4 17 21 4 . . . . 4 5 2 . . . 1 3 4 1 5 3 3 1 . . Ballistic Cannon 3 | . 9 26 4 . . . . . . . . . . . . 4 5 3 4 . 5 3 2 . 2 1 Peak Build Rating 282 | 7 8 10 23 24 24 31 40 42 57 51 67 67 101 102 111 119 122 124 129 136 134 146 168 168 185 282 Average Rating 104 | 5 7 8 17 21 23 21 33 41 41 35 55 67 89 100 98 111 117 121 126 119 133 140 151 155 170 231 On Entrance 76 | . 7 8 7 21 23 22 16 40 42 20 51 67 67 101 102 96 111 121 120 129 134 133 136 155 160 184 Avg Prop Armor Cover (%) 7 | 15 11 8 15 . . . 12 . 14 16 4 8 8 . . 2 1 . . . . . . . 2 3 Naked Turns . | . . . . . . . . . . . . . . . . . . . . . . . . . . . Heaviest Build 133 | 14 51 54 58 61 61 69 30 23 30 10 14 14 37 39 40 32 34 38 49 51 47 47 50 52 55 133 Greatest Support 184 | 16 40 26 92 89 92 92 25 25 29 22 24 24 38 38 42 42 57 52 52 52 47 59 90 63 57 184 Greatest Overweight (x) 5 | 1 5 3 5 . . 2 1 . 1 . . . . 1 . . . . . 1 . . 1 . 1 2 Average Overweight (x) . | . 1 2 1 . . . . . . . . . . . . . . . . . . . . . . . Largest Inventory Capacity 25 | 8 20 20 20 20 20 20 15 15 15 5 5 5 5 5 5 5 5 5 5 5 5 5 10 10 10 25 Average Capacity 14 | 6 10 20 20 20 20 19 15 15 13 5 5 5 5 5 5 5 5 5 5 5 5 5 6 10 10 21 Most Carried 25 | 7 12 18 20 20 20 20 12 15 15 5 5 5 5 5 5 5 5 5 5 5 5 5 10 10 10 25 Average Carried 13 | 4 8 15 18 19 19 18 11 14 12 4 4 5 4 4 4 5 4 4 4 4 5 4 6 9 9 19 Final Capacity 25 | 8 20 20 20 20 20 15 15 15 5 5 5 5 5 5 5 5 5 5 5 5 5 5 10 10 10 25 Final Carried 20 | 6 12 11 20 20 19 13 12 15 4 4 5 5 5 5 5 5 5 5 5 5 5 5 10 10 10 14 Scrap Suit Usage (%) 1 | . . . . . . . . . . . . . . . . . . . . . . . . . . 1 Parts Cannibalized 2 | . . . . . . . . . . . . . . . . . . . . . . . . . . 2 Class Distribution -------------------- 46% | Mutant 14% | Hacker-Sprinter 9% | Trapper-Sprinter 9% | Scavenger-Mutant 4% | Commander-Mutant 3% | Scavenger-Scout 3% | Scavenger-Gladiator Dominant Class ---------------- Mutant | -10/Materials Mutant | -10/Mines Mutant | -9/Materials Commander-Mutant | -9/Storage Mutant | -9/Recycling Mutant | -9/Scraptown Sprinter | -6/Factory Sprinter | -6/Waste Mutant | -6/Factory Mutant | -5/Factory Scavenger-Scout | -5/Upper Caves Scavenger-Scout | -5/Upper Caves Hacker-Sprinter | -5/Warlord Trapper-Sprinter | -4/Proximity Caves Trapper-Scout | -4/Factory Trapper-Sprinter | -4/Waste Trapper-Sprinter | -4/Factory Trapper-Sprinter | -4/Upper Caves Hacker-Sprinter | -4/Upper Caves Hacker-Mutant | -4/Zhirov Hacker-Sprinter | -3/Proximity Caves Hacker-Sprinter | -3/Research Hacker-Sprinter | -3/Testing Wizard-Sprinter | -2/Research Wizard-Sprinter | -2/Quarantine Mutant | -2/Protoforge Resources | -11 -10 -10 -9 -9 -9 -9 -6 -6 -6 -5 -5 -5 -5 -4 -4 -4 -4 -4 -4 -4 -3 -3 -3 -2 -2 -2 ----------- Run | Yrd Mat Min Mat Sto Rec Scr Fac Was Fac Fac Upp Upp War Pro Fac Was Fac Upp Upp Zhi Pro Res Tes Res Qua Frg Matter Collected 17077 | 289 572 215 596 416 102 131 30 . 8 398 118 . 208 70 99 79 527 519 116 226 155 201 1271 130 303 10298 Remotely 955 | . . . . . . . . . . . . . . . . . . . . . . . . . . 955 Salvage Created 16287 | 143 585 268 1087 566 239 . 30 . 20 227 69 . . 178 172 . 574 378 35 274 124 255 2884 793 239 7147 Parts 691 | 12 36 12 60 35 10 . 5 . 2 8 1 . . 9 9 . 35 15 1 9 4 16 70 32 10 300 Haulers Intercepted 17 | . 2 . 5 4 . . . . . . . . . . . . 1 . . . . 1 1 3 . . Recyclers Shooed 9 | 1 1 . 3 . . . . . . 2 . . . . 1 . . . . . . . 1 . . . Parts Field Recycled . | . . . . . . . . . . . . . . . . . . . . . . . . . . . Retrieved Matter . | . . . . . . . . . . . . . . . . . . . . . . . . . . . Parts Self-Destructed 25 | . . . . . . . . . . . 1 . . 7 . . . 8 . 5 4 . . . . . Prevented 12 | . . . . . . . . . . . . . . 5 . . . 7 . . . . . . . . Parts Restored 6 | . . . . . . . . . . . . . . . . . . . . . . . . . . 6 Faulty 6 | . . . . . . . . . . . . . . . . . . . . . . . . . . 6 Kills | -11 -10 -10 -9 -9 -9 -9 -6 -6 -6 -5 -5 -5 -5 -4 -4 -4 -4 -4 -4 -4 -3 -3 -3 -2 -2 -2 ------- Run | Yrd Mat Min Mat Sto Rec Scr Fac Was Fac Fac Upp Upp War Pro Fac Was Fac Upp Upp Zhi Pro Res Tes Res Qua Frg Combat Hostiles Destroyed 230 | . 8 3 21 9 2 . . . 2 2 1 . . 1 7 . 10 11 . . . 3 27 2 1 120 Melee 17 | . . . . . . . . . . . . . . . . . . . . . . . . . 1 16 Guns 63 | . 5 . 12 5 2 . . . . . 1 . . . 2 . 1 . . . . . 26 2 . 7 Cannons 91 | . 2 3 6 . . . . . . . . . . 1 2 . 6 . . . . 1 1 . . 69 AOE 39 | . . . 2 4 . . . . 2 2 . . . . 2 . 2 10 . . . 2 . . . 13 Classes Destroyed 31 | 2 7 . 2 1 . . . . 1 1 . . . 1 2 . . 1 . . . . 3 . . 10 Worker 9 | . 1 . . 1 . . 1 . . 2 . . . . 2 . 1 . . . . . 1 . . . Builder 9 | . 1 1 1 . . . 1 . . . . . . . . . . . . . . . 2 . . 3 Tunneler 4 | 3 . . . . . . . . . . . . . . . . . . . . . . . 1 . . Hauler 17 | . 2 . 5 4 . . . . . . . . . . . . 1 . . . . 1 1 3 . . Recycler 16 | 1 1 2 1 . 2 . . . . 1 . . . . . . . . . . . 1 5 1 1 . Carrier 2 | . . . . . . . . . . . . . . . . . . . . . . . . . . 2 Minesweeper 5 | . . . . . . . . . . . . . . 4 . . . 1 . . . . . . . . Mechanic 2 | . 1 . . . . . . . . . . . . . . . . . . . . . . . . 1 Operator 9 | . 1 . 1 2 . . . . . . . . . . . . 2 . . . . . 2 1 . . Drone 18 | . . . . . . . . . . . . . . . 5 . 4 . . . . . . . . 9 Watcher 10 | . 3 . 1 1 . . . . . . . . . . . . . . . . . . . 2 . 3 Swarmer 23 | . . . 4 4 . . . . . . . . . . 6 . 1 5 . . . . 2 . . 1 Cutter 5 | . . . . . . . . . 2 . . . . . . . . . . . . 3 . . . . Grunt 65 | . 8 2 12 4 . . . . . . 1 . . . . . . 2 . . . . 18 . . 18 Brawler 10 | . . . . 1 . . . . . . . . . . . . 1 . . . . . 1 . . 7 Duelist 4 | . . . . . . . . . . . . . . . . . . . . . . . . . . 4 Protector 2 | . . . . . . . . . . . . . . . . . . . . . . . 1 . . 1 Researcher 8 | . . . . . . . . . . . . . . . . . . . . . . . 2 . 1 5 Sentry 27 | . . . 5 1 2 . . . . . . . . 1 . . 1 1 . . . . . 2 . 14 Specialist 1 | . . . . . . . . . . . . . . . . . . . . . . . 1 . . . Hunter 18 | . . . . . . . . . . . . . . . 1 . 4 3 . . . . 1 . . 9 Programmer 26 | . . . . . . . . . . 2 . . . . . . 2 . . . . . 3 . 1 18 Q-Series 8 | . . . . . . . . . . . . . . . . . . . . . . . . . . 8 Hotshot 4 | . . . . . . . . . . . . . . . . . . . . . . . . . . 4 Decapitator 6 | . . . . . . . . . . . . . . . . . . . . . . . . . . 6 Immortal 4 | . . . . . . . . . . . . . . . . . . . . . . . . . . 4 Striker 4 | . . . . . . . . . . . . . . . . . . . . . . . . . . 4 Executioner 4 | . . . . . . . . . . . . . . . . . . . . . . . . . . 4 Alpha 7 2 | . . . . . . . . . . . . . . . . . . . . . . . . . . 2 V-Series 6 | . . . . . . . . . . . . . . . . . . . . . . . . . . 6 Elite 1 | . . . . . . . . . . . . . . . . . . . . . . . . . . 1 Scrapoid 3 | . . . . . . . . . . . . . . . . . . . . . . . . . . 3 Samaritan 2 | . . . . . . . . . . . . . . . . . . 1 1 . . . . . . . Tinkerer 1 | . . . . . . . . . . . . . . . . . . . . . . . . . . 1 Best Kill Streak 22 | 2 5 2 4 4 2 . 1 . 2 2 1 . . 1 4 . 3 7 . . . 4 22 8 1 11 Combat Bots Only 21 | . 2 2 4 4 1 . . . 2 2 1 . . 1 4 . 3 7 . . . 2 21 1 1 11 Max Kills in Single Turn 4 | 1 1 2 1 4 1 . 1 . 1 2 1 . . 1 3 . 4 4 1 . . 2 2 1 1 3 Gunslinging . | . . . . . . . . . . . . . . . . . . . . . . . . . . . Exploded 4 | . . . 1 4 . . . . 1 2 . . . . 2 . 1 4 . . . 2 . . . 2 Melee 1 | . . . . . . . . . . . . . . . . . . . . . . . . . 1 1 Uniques/NPCs Destroyed 1 | . . 1 . . . . . . . . . . . . . . . . . . . . . . . . YI-UF0 (-10/Mines) Combat | -11 -10 -10 -9 -9 -9 -9 -6 -6 -6 -5 -5 -5 -5 -4 -4 -4 -4 -4 -4 -4 -3 -3 -3 -2 -2 -2 -------- Run | Yrd Mat Min Mat Sto Rec Scr Fac Was Fac Fac Upp Upp War Pro Fac Was Fac Upp Upp Zhi Pro Res Tes Res Qua Frg Hostile Shots Fired 1751 | . 53 34 110 21 20 . . . 86 37 6 6 2 3 53 . 44 22 . . 14 52 74 55 52 1007 Missed 695 | . 12 11 31 6 3 . . . 37 15 3 6 1 . 32 . 29 11 . . 12 26 35 31 25 369 Deflected 8 | . . . . . . . . . . . . . . . . . . . . . . . . . . 8 Hits 1056 | . 41 23 79 15 17 . . . 49 22 3 . 1 3 21 . 15 11 . . 2 26 39 24 27 638 Melee 43 | . . . 4 . . . . . 2 . . . . . . . . . . . . 8 . . . 29 Projectile 1013 | . 41 23 75 15 17 . . . 47 22 3 . 1 3 21 . 15 11 . . 2 18 39 24 27 609 AOE 28 | . . 21 . . . . . . 4 . . . . . . . . . . . . 1 . . . 2 Critical Strikes 56 | . . . 1 . 1 . . . . 3 . . . . 1 . . 1 . . . 3 1 . . 45 Actively Blocked 45 | . . . . . . . . . . . . . . . . . . 1 . . . . . . . 44 Part Disruptions 6 | . . . . . . . . . . . . . . . . . 1 . . . . . . 1 . 4 Damage Taken 23885 | . 476 718 973 217 243 . . . 1057 613 57 . 20 30 520 . 454 191 . . 37 666 812 572 692 15537 Core 2005 | . 47 71 128 29 12 . . . 487 224 . . . . 88 . 9 34 . . . 80 42 63 49 642 Absorbed by Shields 2619 | . . . . . . . . . . . . . . . . . . . . . . . . . . 2619 Redirected to Shielding 498 | . . . . . . . . . . . . . . . . . . . . . . . 25 . . 473 Ignored by Resistances 536 | . . . 91 . . . . . . . . . . . . . . . . . . 9 . . . 436 Regen/Repaired (Parts) 8698 | . . . . . . . . . . . . . 43 . . 187 110 . . . . . 124 63 264 7907 Core Remaining (%) 72 | 100 . 52 . . . 57 . . 42 . . . . 77 . . . . . . 88 . 90 . . . Volleys Fired 992 | 9 65 19 82 47 15 . . . 2 28 1 2 1 55 12 . 45 25 9 14 7 30 104 18 6 396 Largest 2 | 2 2 2 2 2 2 . . . 1 1 2 1 1 1 2 . 2 1 1 1 1 2 2 1 1 2 Hottest 280 | 70 70 105 131 100 46 . . . 39 225 98 75 50 75 125 . 133 58 58 35 35 93 130 130 54 280 Shots Fired 1350 | 18 130 37 156 86 33 . . . 2 27 2 2 1 55 15 . 57 26 10 14 7 32 106 18 6 510 Gun 740 | 18 95 10 98 80 33 . . . . 24 2 2 . 50 9 . 19 13 3 14 7 2 80 15 . 166 Cannon 552 | . 34 27 55 . . . . . . . . . 1 5 4 . 38 3 7 . . 28 24 3 6 317 Launcher 53 | . 1 . 3 1 . . . . 2 3 . . . . 2 . . 10 . . . 2 2 . . 27 Special 5 | . . . . 5 . . . . . . . . . . . . . . . . . . . . . . Kinetic 773 | 9 98 28 57 72 33 . . . . . 1 . . . . . 40 16 10 14 7 30 100 15 6 237 Thermal 462 | 9 31 9 73 10 . . . . . 24 1 2 . 50 9 . 17 . . . . . 4 3 . 220 Explosive 37 | . 1 . 3 1 . . . . 2 3 . . . . 2 . . 10 . . . 2 . . . 13 Electromagnetic 68 | . . . 23 3 . . . . . . . . . . . . . . . . . . 2 . . 40 Entropic 10 | . . . . . . . . . . . . . 1 5 4 . . . . . . . . . . . Robot Hit Streak 24 | 8 17 6 11 10 12 . . . . 18 3 . . 5 5 . 5 4 7 10 8 11 21 6 4 24 Robot Miss Streak 5 | 1 4 3 5 2 2 . . . . 2 . . . 3 4 . 4 2 1 2 . 3 3 4 1 5 Penetration Max 3 | . . . . . . . . . . . . . . . . . . . . 1 1 . 2 3 . 2 Secondary Targets 3 | . . . 1 . . . . . . . 1 . . . . . . . . . . . . . . 1 Max Gunslinging Chain 1 | . . . 1 . . . . . . . 1 . . . . . . . . . . . . . . 1 Shots Hit Robots 919 | 12 92 25 101 52 30 2 4 . . 13 2 . . 33 6 . 23 12 5 11 7 6 57 24 14 388 Core Hits 487 | 6 27 10 40 25 7 . 2 . 2 9 2 . . 14 19 . 15 20 1 11 4 7 71 17 3 175 Critical Kills 56 | . . . 1 . . . . . . . . . . . . . . 1 . . 2 1 34 5 . 12 Critical Parts Destroyed 64 | . . . . . 1 . . . . . . . . . . . . 2 . 4 1 . 50 5 . 1 Critical Strikes 180 | . 5 . 5 . 1 . 1 . . 1 . . . 2 1 . 1 3 1 4 4 1 88 12 1 49 Burn 7 | . 4 . 3 . . . . . . . . . . . . . . . . . . . . . . . Meltdown 13 | . . . 1 . . . . . . . . . . . . . . . . . . . . . . 12 Destroy 111 | . . . . . 1 . . . . . . . . . . . . 3 . 4 4 1 85 12 . 1 Blast 34 | . 1 . 1 . . . . . . . . . . . . . 1 . 1 . . . 1 . . 29 Sever 12 | . . . . . . . 1 . . 1 . . . . . . . . . . . . 2 . 1 7 Sunder 3 | . . . . . . . . . . . . . . 2 1 . . . . . . . . . . . Melee Attacks 183 | . . . . . 3 2 4 . 1 13 . . . . . . . . . . . . 22 28 13 97 Impact 2 | . . . . . . . . . . . . . . . . . . . . . . . . . 2 . Slashing 176 | . . . . . . . 4 . 1 13 . . . . . . . . . . . . 22 28 11 97 Piercing . | . . . . . . . . . . . . . . . . . . . . . . . . . . . Sneak Attacks 27 | . . . . . 3 2 3 . . 3 . . . . . . . . . . . . 3 3 2 8 Combat Hostiles 1 | . . . . . . . . . . . . . . . . . . . . . . . . . . 1 Follow-up Attacks . | . . . . . . . . . . . . . . . . . . . . . . . . . . . Damage Inflicted 54337 | 139 1309 432 2100 1058 423 . 244 . 130 666 32 . . 890 1340 . 1778 1425 92 153 60 455 1684 824 881 38222 Guns 9494 | 139 969 124 1097 856 423 . . . . 88 32 . . 680 130 . 115 74 21 153 60 14 898 169 . 3452 Cannons 26065 | . 340 308 818 . . . . . . . . . . 210 142 . 823 87 71 . . 175 198 . 164 22729 Explosions 9819 | . . . 185 202 . . . . 126 238 . . . . 1068 . 840 1264 . . . 266 106 . . 5524 Melee 8955 | . . . . . . . 244 . . 340 . . . . . . . . . . . . 482 655 717 6517 Ramming 4 | . . . . . . . . . 4 . . . . . . . . . . . . . . . . . Kinetic 20496 | 40 979 320 725 788 423 . . . . . 15 . . . . . 823 161 92 153 60 189 1096 169 164 14299 Thermal 14016 | 99 330 112 977 68 . . . . . 88 17 . . 680 130 . 115 . . . . . . . . 11400 Explosive 8026 | . . . 133 202 . . . . 126 238 . . . . 582 . . 1264 . . . 266 . . . 5215 Electromagnetic 2488 | . . . 265 . . . . . . . . . . . 486 . 840 . . . . . 106 . . 791 Impact 172 | . . . . . . . . . . . . . . . . . . . . . . . . . 172 . Slashing 8783 | . . . . . . . 244 . . 340 . . . . . . . . . . . . 482 655 545 6517 Piercing . | . . . . . . . . . . . . . . . . . . . . . . . . . . . Entropic 352 | . . . . . . . . . . . . . . 210 142 . . . . . . . . . . . Highest Corruption 35 | . 1 1 8 8 8 . . 8 10 4 4 4 4 . 1 1 2 7 7 7 7 . 2 2 8 35 Average Corruption 9 | . 1 1 7 8 8 . . 8 8 3 4 4 4 . 1 1 1 6 7 7 7 . 1 1 4 17 Corruption Purged . | . . . . . . . . . . . . . . . . . . . . . . . . . . . Corruption Blocked 15 | . . . . . . . . . . . . . . . . . . . . . . . . . . 15 Effects 448 | . 8 5 30 33 32 . . 1 6 5 7 6 . . . . 5 18 10 6 9 . 8 2 6 251 Message Errors 104 | . 2 . 10 11 5 . . . 3 . . 2 . . . . 1 . 5 2 2 . 1 1 1 58 Matter Fused 90 | . 1 1 6 6 11 . . . . 2 2 2 . . . . 1 6 1 2 2 . 2 1 . 44 Heat Flow Errors 57 | . 3 1 3 2 5 . . . 1 . 1 . . . . . . 4 1 . 1 . . . 3 32 Energy Discharges 54 | . . 1 4 7 4 . . . . . 2 . . . . . . 3 1 2 1 . 1 . . 28 Parts Rejected 5 | . . . . 1 . . . 1 . . . . . . . . . . . . . . . . . 3 Parts Fused 3 | . . . . . . . . . . . . . . . . . . . . . . . . . . 3 Data Loss (minor) 36 | . . 1 2 2 3 . . . 1 . . 1 . . . . 1 3 1 . 1 . 2 . 1 17 Data Loss (major) 26 | . 1 . 1 2 1 . . . 1 . 1 . . . . . 1 1 . . 1 . 1 . 1 14 Misfires 21 | . 1 . 1 2 3 . . . . . . . . . . . . 1 1 . . . 1 . . 11 Alerts 15 | . . . 2 . . . . . . 2 1 1 . . . . 1 . . . 1 . . . . 7 Misdirections 8 | . . . . . . . . . . . . . . . . . . . . . . . . . . 8 Weapon Failures 29 | . . 1 1 . . . . . . 1 . . . . . . . . . . . . . . . 26 Overload Shots 4 | . . . . . . . . . . 4 . . . . . . . . . . . . . . . . Effects 1 | . . . . . . . . . . 1 . . . . . . . . . . . . . . . . Short Circuit 1 | . . . . . . . . . . 1 . . . . . . . . . . . . . . . . Overflow Damage 5170 | . . 11 . 4 . . 34 . 41 99 . . . . 77 . 269 95 31 . . 10 56 68 319 4056 Projectiles 2475 | . . 11 . . . . . . . . . . . . . . 54 48 31 . . . 5 . 29 2297 Explosions 1479 | . . . . 4 . . . . 41 12 . . . . 77 . 215 47 . . . 10 8 . . 1065 Melee 1216 | . . . . . . . 34 . . 87 . . . . . . . . . . . . 43 68 290 694 Knockbacks 71 | . 4 7 1 . . . . . . . . . . . . . 2 . . . . 2 2 . 3 50 Impact 1 | . . . . . . . . . . . . . . . . . . . . . . . . . 1 . Kinetic 65 | . 4 7 1 . . . . . . . . . . . . . 2 . . . . 2 2 . 2 45 Secondary 5 | . . . . . . . . . . . . . . . . . . . . . . . . . . 5 Self-Inflicted Damage 1164 | . . . 42 . . . . . 118 139 . . . . 134 . 121 . . . . 116 19 . . 475 Shots 32 | . . . 2 . . . . . 2 3 . . . . 2 . 2 . . . . 2 2 . . 17 Rammed 1 | . . . . . . . . . 1 . . . . . . . . . . . . . . . . . Targets Rammed 1 | . . . . . . . . . 1 . . . . . . . . . . . . . . . . . Kicked . | . . . . . . . . . . . . . . . . . . . . . . . . . . . Crushed . | . . . . . . . . . . . . . . . . . . . . . . . . . . . Highest Temperature 318 | 110 258 213 318 198 237 . . 3 186 148 38 28 . 104 90 6 116 189 138 22 127 270 32 . 154 244 Average Temperature 59 | 46 75 53 89 39 83 . . 3 71 80 21 14 . 37 18 3 34 74 42 9 31 86 8 . 78 88 Received Heat Transfer 2111 | . 261 51 378 63 90 . . . 81 27 27 . . . 24 . 9 21 . . 9 99 138 . 45 788 Effects 1 | . . . 1 . . . . . . . . . . . . . . . . . . . . . . . Energy Bleed 1 | . . . 1 . . . . . . . . . . . . . . . . . . . . . . . Siege Activations . | . . . . . . . . . . . . . . . . . . . . . . . . . . . Martial Activations . | . . . . . . . . . . . . . . . . . . . . . . . . . . . Shielding Activations . | . . . . . . . . . . . . . . . . . . . . . . . . . . . Robots Disrupted 1 | . . . . . . . . . . . . . . . . . . . . . . . . . . 1 Combat Hostiles 1 | . . . . . . . . . . . . . . . . . . . . . . . . . . 1 Robots Corrupted 8 | . . . . . . . . . . . . . . . 1 . 1 . . . . . 1 . . 5 Combat Hostiles 7 | . . . . . . . . . . . . . . . 1 . 1 . . . . . . . . 5 Parts Fried 19 | . . . . . . . . . . . . . . . 2 . 3 2 . . . . 3 . . 9 Impact Corruptions 2 | . . . . . . . . . . . . . . . . . . . . . . . . . 1 1 Robots Melted 14 | . 1 . 1 . . . . . . . . . . . . . . . . . . . . . . 12 Combat Hostiles 12 | . 1 . 1 . . . . . . . . . . . . . . . . . . . . . . 10 Parts Melted 23 | . 1 . 4 . . . . . . . . . . . . . 2 . . . . . . . . 16 Heat Transferred 13312 | 296 1221 260 2098 148 . . . . . 148 37 . . 1147 222 . 185 . . . . . . . . 7550 Parts Sabotaged . | . . . . . . . . . . . . . . . . . . . . . . . . . . . Parts Stolen . | . . . . . . . . . . . . . . . . . . . . . . . . . . . Parts Stripped . | . . . . . . . . . . . . . . . . . . . . . . . . . . . Power Chain Reactions 2 | . . . 2 . . . . . . . . . . . . . . . . . . . . . . . Alert | -11 -10 -10 -9 -9 -9 -9 -6 -6 -6 -5 -5 -5 -5 -4 -4 -4 -4 -4 -4 -4 -3 -3 -3 -2 -2 -2 ------- Run | Yrd Mat Min Mat Sto Rec Scr Fac Was Fac Fac Upp Upp War Pro Fac Was Fac Upp Upp Zhi Pro Res Tes Res Qua Frg Maximum Alert Level 5 | . . . 1 1 . . . . . . . . . . . . 3 . . . . 1 4 3 1 5 Low Security (%) 58 | 100 100 100 52 73 100 . 100 100 100 100 . . . . 100 100 23 . . . . 74 24 . 25 32 Level 1 13 | . . . 47 26 . . . . . . . . . . . . 8 . . . . 25 43 . 75 8 Level 2 5 | . . . . . . . . . . . . . . . . . 4 . . . . . 16 12 . 10 Level 3 9 | . . . . . . . . . . . . . . . . . 63 . . . . . 8 87 . 10 Level 4 3 | . . . . . . . . . . . . . . . . . . . . . . . 6 . . 7 Level 5 10 | . . . . . . . . . . . . . . . . . . . . . . . . . . 29 High Security . | . . . . . . . . . . . . . . . . . . . . . . . . . . . Max Security . | . . . . . . . . . . . . . . . . . . . . . . . . . . . Peak Influence 3763 | 10 80 55 278 316 119 . 14 . 81 59 . . . . 117 50 1068 . . . . 343 1236 916 329 3763 Initial 695 | . . . . 79 112 . . . . 14 . . . . . 30 . . . . . . 136 695 293 . Average 462 | 1 19 4 162 186 36 . 2 . 23 14 . . . . 49 25 647 . . . . 122 397 791 229 999 Influence Increases 12709 | 20 303 80 678 763 206 . 27 . 287 257 65 45 30 42 335 46 1744 345 . 10 40 486 1564 487 126 4723 Destroy 0b10 Robot/C 5320 | . 160 40 420 360 80 . . . 80 40 20 . . 20 160 . 500 220 . . . 60 680 40 40 2400 Destroy 0b10 Robot/NC 500 | 20 50 15 45 40 10 . 10 . . 15 . . . 20 10 . 30 5 . 10 10 10 65 40 5 90 Destroy Leader 976 | . 50 10 112 120 . . . . 20 10 . . . . 10 . 114 30 . . . 12 72 30 . 386 Allied During Kill 765 | . . . . 170 8 . . . 10 . . . . 2 1 . 541 . . . . . 33 . . . Trap Triggered on 0b10 120 | . . . . . . . . . . . . . . . . . 10 . . . . . 40 10 . 60 Successful Hack 437 | . 35 . 46 14 18 . 17 . . 79 . . . . 5 . 20 . . . . 67 49 27 . 60 Select Force Hacks 90 | . . . . . 90 . . . . . . . . . . . . . . . . . . . . . Disable Machine 1035 | . . 15 . 45 . . . . . 30 . . . . 15 . 120 . . . . . 210 . 45 555 Destroy Structure 1411 | . 8 . 40 14 . . . . 27 38 . . . . 44 46 214 . . . . 82 40 40 6 812 Partial Spotted 420 | . . . . . . . . . 45 15 . . . . 45 . 15 . . . . 60 45 75 30 90 Lose Combat Pursuer 1635 | . . . 15 . . . . . 105 30 45 45 30 . 45 . 180 90 . . 30 195 330 225 . 270 Influence Decreases 8946 | 20 303 80 488 663 496 . 27 . 257 276 76 45 30 42 248 133 770 652 257 420 40 243 571 1201 648 960 Entered New Map 2143 | . . . . 111 178 . . . . 16 5 . . . . 57 . 362 127 410 . . 107 541 229 . Time Decay 4489 | 20 303 80 447 392 318 . 27 . 85 195 71 45 8 42 88 76 315 270 130 10 40 103 404 170 90 760 Search Patrol Dispatched 100 | . . . . . . . . . . . . . . . . . . . . . . 100 . . . . Lost Part 558 | . . . 41 . . . . . 72 55 . . . . 30 . 10 20 . . . 40 40 20 30 200 Lost Ally 767 | . . . . 160 . . . . 100 10 . . 22 . 130 . 295 . . . . . 20 20 10 . Purge Threat 889 | . . . . . . . . . . . . . . . . . 150 . . . . . . 450 289 . Squads Dispatched 81 | . 2 . 3 2 . . . . 6 7 . . . . 3 . 9 . . . . 7 10 6 4 22 Investigation 31 | . 1 . 1 1 . . . . 4 2 . . . . 3 . 5 . . . . 4 . 2 2 6 Extermination 19 | . . . . . . . . . 1 2 . . . . . . 1 . . . . 1 3 1 1 9 Reinforcement 24 | . 1 . 2 1 . . . . 1 3 . . . . . . 3 . . . . 2 6 2 1 2 Assault 7 | . . . . . . . . . . . . . . . . . . . . . . . 1 1 . 5 Garrison . | . . . . . . . . . . . . . . . . . . . . . . . . . . . Intercept . | . . . . . . . . . . . . . . . . . . . . . . . . . . . Searches Triggered 1 | . . . . . . . . . . . . . . . . . . . . . . 1 . . . . Construction Impeded 2 | . . . . . . . . . . 1 . . . . . . . . . . . . 1 . . . Haulers Reinforced 2 | . . . . . . . . . . . . . . . . . 1 . . . . . 1 . . . Active Scanning Responses . | . . . . . . . . . . . . . . . . . . . . . . . . . . . Cargo Convoy Interrupts . | . . . . . . . . . . . . . . . . . . . . . . . . . . . Stealth | -11 -10 -10 -9 -9 -9 -9 -6 -6 -6 -5 -5 -5 -5 -4 -4 -4 -4 -4 -4 -4 -3 -3 -3 -2 -2 -2 --------- Run | Yrd Mat Min Mat Sto Rec Scr Fac Was Fac Fac Upp Upp War Pro Fac Was Fac Upp Upp Zhi Pro Res Tes Res Qua Frg Distress Signals 36 | . 1 . 2 3 . . . . . 4 . . . . 5 . 6 . . . . 1 4 4 . 6 Communications Jammed 45 | . . . . . . . . . . . . . . . . . 14 1 . . . 13 1 3 1 12 Distress Signals 23 | . . . . . . . . . . . . . . . . . . . . . . 6 1 3 1 12 Times Spotted 562 | . 18 3 29 23 4 . . 6 20 9 6 6 11 4 23 2 45 13 . . 3 24 57 34 24 198 Peak Tracking Total 19 | . 3 2 5 5 1 . . 6 11 4 5 5 8 2 11 2 9 3 . . 2 9 15 17 12 19 Tactical Retreats 58 | . . . 1 . . . . . 3 2 3 1 1 . 2 1 5 4 . . 2 7 9 4 3 10 ECM-based Alert Blocks 17 | . . . . . . . . . . . . . . . . . . . . . . . . . 15 2 Traps | -11 -10 -10 -9 -9 -9 -9 -6 -6 -6 -5 -5 -5 -5 -4 -4 -4 -4 -4 -4 -4 -3 -3 -3 -2 -2 -2 ------- Run | Yrd Mat Min Mat Sto Rec Scr Fac Was Fac Fac Upp Upp War Pro Fac Was Fac Upp Upp Zhi Pro Res Tes Res Qua Frg Traps Triggered 22 | . 3 . . . . . 1 . 1 1 . . . . 3 . 3 . . . . 1 1 1 1 6 Indirectly 1 | . . . . . . . . . . . . . . . . . . . . . . . 1 . . . Trap Hack Attempts . | . . . . . . . . . . . . . . . . . . . . . . . . . . . Triggered . | . . . . . . . . . . . . . . . . . . . . . . . . . . . Disarmed . | . . . . . . . . . . . . . . . . . . . . . . . . . . . Reprogrammed 4 | . . . . . . . . . . . . . . . . . . . . . . . 4 . . . Reused 20 | . . . . . . . . . . . . . . . . . 1 6 . . 3 . 4 1 . 5 Traps Extracted 9 | . . . . . . . . . . . . . . . . . . 5 . . 3 . . 1 . . Installed 39 | . . . . . . . . . . . . . . 1 2 . 5 9 . . 6 . 3 2 . 11 Triggered 21 | . . . . . . . . . . . . . . . . . 1 6 . . 3 . 4 1 . 6 Most Traps Carried 16 | . . . . . . . . . . . . . . 16 16 15 15 15 12 12 11 8 8 6 . 1 Machines | -11 -10 -10 -9 -9 -9 -9 -6 -6 -6 -5 -5 -5 -5 -4 -4 -4 -4 -4 -4 -4 -3 -3 -3 -2 -2 -2 ---------- Run | Yrd Mat Min Mat Sto Rec Scr Fac Was Fac Fac Upp Upp War Pro Fac Was Fac Upp Upp Zhi Pro Res Tes Res Qua Frg Machines Disabled 86 | . . 1 . 3 . . . . . 2 . . 1 . 1 . 8 . . . . . 17 . 3 50 Max in Single Turn 2 | . . 1 . 1 . . . . . 1 . . 1 . 1 . 1 . . . . . 1 . 1 2 Garrison Access 8 | . . . . 1 . . . . . . . . . . 1 . 2 . . . . 1 . 2 . 1 Machines Repaired . | . . . . . . . . . . . . . . . . . . . . . . . . . . . Machines Dismantled 1 | . . . . . . . . . . . . . 1 . . . . . . . . . . . . . Machines Sabotaged . | . . . . . . . . . . . . . . . . . . . . . . . . . . . Overloaded Fab Kills . | . . . . . . . . . . . . . . . . . . . . . . . . . . . Hacking | -11 -10 -10 -9 -9 -9 -9 -6 -6 -6 -5 -5 -5 -5 -4 -4 -4 -4 -4 -4 -4 -3 -3 -3 -2 -2 -2 --------- Run | Yrd Mat Min Mat Sto Rec Scr Fac Was Fac Fac Upp Upp War Pro Fac Was Fac Upp Upp Zhi Pro Res Tes Res Qua Frg Machines Accessed 140 | . 8 . 7 11 8 1 5 . 6 10 . . 4 . 7 . 11 2 1 4 . 12 12 8 6 17 Terminals 69 | . 7 . 6 8 5 . 1 . 1 5 . . . . 1 . 3 . . . . 6 10 4 3 9 Fabricators 12 | . . . . . . . 2 . . 1 . . . . 2 . 1 . . . . 1 . 1 . 4 Repair Stations 3 | . . . . . . . . . . 1 . . . . . . . . . . . . 1 . 1 . Recycling Units 27 | . 1 . 1 2 3 . 1 . 4 2 . . . . 3 . 4 . . . . 3 . 1 . 2 Scanalyzers 7 | . . . . . . . . . 1 1 . . . . . . 1 . . . . 1 1 . 1 1 Garrison Access 10 | . . . . 1 . . 1 . . . . . . . 1 . 2 . . . . 1 . 2 1 1 Total Hacks 435 | . 22 . 21 29 25 4 19 . 10 20 . . 13 . 17 . 34 8 1 17 . 48 50 34 22 41 Successful 260 | . 11 . 7 13 16 4 5 . 8 8 . . 13 . 10 . 22 8 1 17 . 32 32 24 10 19 Failed 175 | . 11 . 14 16 9 . 14 . 2 12 . . . . 7 . 12 . . . . 16 18 10 12 22 Catastrophic 21 | . 1 . 1 4 . . 2 . 1 . . . . . 1 . 2 . . . . 1 . 3 . 5 Database Lockouts . | . . . . . . . . . . . . . . . . . . . . . . . . . . . Manual 192 | . 13 . 15 11 15 . 5 . 5 4 . . . . 6 . 14 . . . . 27 24 18 15 20 Terminals 230 | . 19 . 16 21 16 . 5 . 1 10 . . . . 3 . 11 . . . . 33 44 17 11 23 Fabricators 39 | . . . . . . . 5 . . 1 . . . . 8 . 3 . . . . 2 . 12 . 8 Repair Stations 5 | . . . . . . . . . . 1 . . . . . . . . . . . . 2 . 2 . Recycling Units 75 | . 3 . 5 7 9 . 6 . 7 5 . . . . 5 . 12 . . . . 8 . 2 . 6 Scanalyzers 28 | . . . . . . . . . 2 3 . . . . . . 6 . . . . 4 4 . 6 3 Garrison Access 15 | . . . . 1 . . 3 . . . . . . . 1 . 2 . . . . 1 . 3 3 1 Terminal Hacks 113 | . 7 . 1 6 3 4 1 . . 3 . . 13 . . . 5 8 1 17 . 9 15 10 3 7 Record 18 | . . . . . . 4 . . . . . . . . . . . 7 . 5 . . . . . 2 Part Schematic 7 | . . . . 1 1 . . . . . . . . . . . . . . 4 . . 1 . . . Robot Schematic 1 | . 1 . . . . . . . . . . . . . . . . . . . . . . . . . Robot Analysis 7 | . 2 . . . . . . . . . . . . . . . . . . 4 . . . 1 . . Prototype ID Bank 18 | . . . . 1 2 . . . . . . . 11 . . . . . . 4 . . . . . . Open Door 7 | . . . . 2 . . . . . . . . 2 . . . . 1 1 . . . 1 . . . Open DSF 1 | . . . . . . . . . . . . . . . . . 1 . . . . . . . . . Level Access Points 1 | . . . . . . . . . . . . . . . . . . . . . . . . . . 1 Branch Access Points 5 | . . . 1 . . . . . . 1 . . . . . . 1 . . . . 1 . 1 . . Machine Index 3 | . . . . . . . . . . . . . . . . . . . . . . 1 1 1 . . Terminal Index 3 | . 1 . . 1 . . 1 . . . . . . . . . . . . . . . . . . . Alert Level 1 | . . . . . . . . . . . . . . . . . . . . . . 1 . . . . Unreport Threat 6 | . . . . . . . . . . . . . . . . . 1 . . . . . . 3 2 . Locate Traps 6 | . 1 . . 1 . . . . . 1 . . . . . . . . . . . . 1 . . 2 Reprogram Traps 1 | . . . . . . . . . . . . . . . . . . . . . . . 1 . . . Maintenance Status 1 | . . . . . . . . . . . . . . . . . . . . . . 1 . . . . Recall Extermination 1 | . . . . . . . . . . . . . . . . . . . . . . . 1 . . . Recall Reinforcements 3 | . . . . . . . . . . . . . . . . . . . . . . . 3 . . . Registered Components 6 | . 1 . . . . . . . . . . . . . . . 1 . . . . 1 1 1 . 1 Registered Prototypes 1 | . . . . . . . . . . . . . . . . . . . . . . 1 . . . . Zone Layout 14 | . 1 . . . . . . . . 1 . . . . . . 1 . . . . 3 4 3 1 . Proto ID Catalog 1 | . . . . . . . . . . . . . . . . . . . . . . . . . . 1 Protovariant Controls 1 | . . . . . . . . . . . . . . . . . . . . . . . 1 . . . Fabricator Hacks 14 | . . . . . . . 1 . . 1 . . . . 2 . 1 . . . . 1 . 4 . 4 Network Status 4 | . . . . . . . 1 . . . . . . . 1 . 1 . . . . . . 1 . . Load Schematic 5 | . . . . . . . . . . . . . . . . . . . . . . 1 . 2 . 2 Build 5 | . . . . . . . . . . 1 . . . . 1 . . . . . . . . 1 . 2 Repair Station Hacks 4 | . . . . . . . . . . 1 . . . . . . . . . . . . 2 . 1 . Scan Component 1 | . . . . . . . . . . . . . . . . . . . . . . . 1 . . . Repair 1 | . . . . . . . . . . . . . . . . . . . . . . . 1 . . . Refit 2 | . . . . . . . . . . 1 . . . . . . . . . . . . . . 1 . Recycling Unit Hacks 25 | . 1 . 1 3 4 . 2 . 2 . . . . . 2 . 5 . . . . 4 . 1 . . Process 1 | . . . . . 1 . . . . . . . . . . . . . . . . . . . . . Report Inventory 19 | . 1 . 1 2 2 . 1 . 2 . . . . . 2 . 4 . . . . 3 . 1 . . Retrieve Components 5 | . . . . 1 1 . 1 . . . . . . . . . 1 . . . . 1 . . . . Scanalyzer 11 | . . . . . . . . . 2 . . . . . . . 3 . . . . 2 2 . . 2 Insert Component 4 | . . . . . . . . . . . . . . . . . . . . . . 1 1 . . 2 Retrieve Study 7 | . . . . . . . . . 2 . . . . . . . 3 . . . . 1 1 . . . Garrison Access Hacks 8 | . . . . 1 . . . . . . . . . . 1 . 2 . . . . 1 . 2 . 1 Seal Access 8 | . . . . 1 . . . . . . . . . . 1 . 2 . . . . 1 . 2 . 1 Unauthorized Hacks 85 | . 3 . 5 3 9 . 1 . 4 3 . . . . 5 . 6 . . . . 15 13 7 6 5 Terminals 44 | . 1 . 4 . 6 . . . . 2 . . . . . . . . . . . 11 13 . 4 3 Track 13 | . 1 . . . . . . . . 2 . . . . . . . . . . . 2 4 . 1 3 Assimilate 2 | . . . . . . . . . . . . . . . . . . . . . . . 1 . 1 . Botnet 7 | . . . 2 . 1 . . . . . . . . . . . . . . . . 2 2 . . . Disrupt 2 | . . . . . . . . . . . . . . . . . . . . . . 1 . . 1 . Operators 3 | . . . . . . . . . . . . . . . . . . . . . . 1 1 . 1 . Skim 17 | . . . 2 . 5 . . . . . . . . . . . . . . . . 5 5 . . . Fabricators 12 | . . . . . . . . . . . . . . . 2 . 2 . . . . 1 . 6 . 1 Report 1 | . . . . . . . . . . . . . . . . . . . . . . . . 1 . . Prioritize 1 | . . . . . . . . . . . . . . . . . . . . . . . . 1 . . Liberate 3 | . . . . . . . . . . . . . . . 1 . 1 . . . . . . 1 . . Fabnet 1 | . . . . . . . . . . . . . . . . . . . . . . . . 1 . . Haulers 3 | . . . . . . . . . . . . . . . 1 . 1 . . . . . . 1 . . Recompile 3 | . . . . . . . . . . . . . . . . . . . . . . 1 . 1 . 1 Repair Stations 1 | . . . . . . . . . . . . . . . . . . . . . . . . . 1 . Patch 1 | . . . . . . . . . . . . . . . . . . . . . . . . . 1 . Recycling Units 27 | . 2 . 1 3 3 . 1 . 4 1 . . . . 3 . 4 . . . . 3 . 1 . 1 Reject 1 | . 1 . . . . . . . . . . . . . . . . . . . . . . . . . Recyclers 3 | . . . . 2 . . 1 . . . . . . . . . . . . . . . . . . . Mask 3 | . 1 . 1 1 . . . . . . . . . . . . . . . . . . . . . . Tunnel 3 | . . . . . 3 . . . . . . . . . . . . . . . . . . . . . Fedlink 16 | . . . . . . . . . 3 1 . . . . 3 . 4 . . . . 3 . 1 . 1 Scrapoids 1 | . . . . . . . . . 1 . . . . . . . . . . . . . . . . . Scanalyzers 1 | . . . . . . . . . . . . . . . . . . . . . . . . . 1 . Researchers 1 | . . . . . . . . . . . . . . . . . . . . . . . . . 1 . Garrison Access . | . . . . . . . . . . . . . . . . . . . . . . . . . . . Data Cores Recovered 3 | . . . . . . . . . . . . . . . . . 1 . . . . . 1 1 . . Used 1 | . . . . . . . . . . . . . . . . . 1 . . . . . . . . . Hacking Detections 94 | . 8 . 7 7 5 . 5 . 4 9 . . . . 2 . 5 . . . . 7 10 6 5 14 Full Trace Events 5 | . . . 1 1 . . . . . . . . . . . . . . . . . . . . 1 2 Feedback Events 1 | . . . . . . . . . . . . . . . . . . . . . . . . . 1 . Corruption 1 | . . . . . . . . . . . . . . . . . . . . . . . . . 1 . Feedback Blocked . | . . . . . . . . . . . . . . . . . . . . . . . . . . . Robot Schematics Acquired 8 | . 1 . . . . . . . . . . . . . . . . . . . . . 3 . . 4 Robots Built 5 | . . . . . . . . . . 1 . . . . 4 . . . . . . . . . . . Authchips . | . . . . . . . . . . . . . . . . . . . . . . . . . . . Time 90 | . . . . . . . . . . 50 . . . . 40 . . . . . . . . . . . Total Robot Build Rating 9 | . . . . . . . . . . 5 . . . . 4 . . . . . . . . . . . Part Schematics Acquired 31 | . . . . 1 1 . . . . . . . . . . . . . . 4 . . 11 . 1 13 Parts Built 3 | . . . . . . . . . . . . . . . . . . . . . . . . 1 . 2 Authchips 2 | . . . . . . . . . . . . . . . . . . . . . . . . 1 . 1 Time 201 | . . . . . . . . . . . . . . . . . . . . . . . . 93 . 108 Total Part Build Rating 23 | . . . . . . . . . . . . . . . . . . . . . . . . 7 . 16 Part Studies Acquired 7 | . . . . . . . . . 2 . . . . . . . 3 . . . . 1 1 . . . Parts Repaired 1 | . . . . . . . . . . . . . . . . . . . . . . . 1 . . . Time 33 | . . . . . . . . . . . . . . . . . . . . . . . 33 . . . Parts Recycled . | . . . . . . . . . . . . . . . . . . . . . . . . . . . Recycled Matter 97 | . . . . . 97 . . . . . . . . . . . . . . . . . . . . . Retrieved Matter . | . . . . . . . . . . . . . . . . . . . . . . . . . . . Retrieved Components 9 | . . . . 2 2 . 1 . . . . . . . . . 1 . . . . 3 . . . . Parts Scanalyzed . | . . . . . . . . . . . . . . . . . . . . . . . . . . . Part Schematics Acquired . | . . . . . . . . . . . . . . . . . . . . . . . . . . . Parts Damaged . | . . . . . . . . . . . . . . . . . . . . . . . . . . . Bothacking | -11 -10 -10 -9 -9 -9 -9 -6 -6 -6 -5 -5 -5 -5 -4 -4 -4 -4 -4 -4 -4 -3 -3 -3 -2 -2 -2 ------------ Run | Yrd Mat Min Mat Sto Rec Scr Fac Was Fac Fac Upp Upp War Pro Fac Was Fac Upp Upp Zhi Pro Res Tes Res Qua Frg Used RIF Installer . | . . . . . . . . . . . . . . . . . . . . . . . . . . . Robots Hacked 5 | . . . . . 3 2 . . . . . . . . . . . . . . . . . . . . Non-combat 1 | . . . . . 1 . . . . . . . . . . . . . . . . . . . . . Combat 4 | . . . . . 2 2 . . . . . . . . . . . . . . . . . . . . Robot Hacks Applied 5 | . . . . . 3 2 . . . . . . . . . . . . . . . . . . . . parse_system 5 | . . . . . 3 2 . . . . . . . . . . . . . . . . . . . . Relay Couplers Released 3 | . . . . . . . . . . . . . . . . . 3 . . . . . . . . . Machine Destruction 3 | . . . . . . . . . . . . . . . . . 3 . . . . . . . . . Fabnet Peak Effective % . | . . . . . . . . . . . . . . . . . . . . . . . . . . . Robots Rewired 3 | . . . . . . . . . . . . . . . 1 . . . . . . . 1 1 . . Allies Hacked . | . . . . . . . . . . . . . . . . . . . . . . . . . . . Hacks Repelled . | . . . . . . . . . . . . . . . . . . . . . . . . . . . Allies | -11 -10 -10 -9 -9 -9 -9 -6 -6 -6 -5 -5 -5 -5 -4 -4 -4 -4 -4 -4 -4 -3 -3 -3 -2 -2 -2 -------- Run | Yrd Mat Min Mat Sto Rec Scr Fac Was Fac Fac Upp Upp War Pro Fac Was Fac Upp Upp Zhi Pro Res Tes Res Qua Frg Total Allies 43 | . . . . 10 . . . . 5 1 . . . . 5 18 . . . . . . 2 1 1 . Largest Group 18 | . . . . 10 2 2 2 1 5 1 . . . . 5 18 14 . . . . . 1 1 1 . Highest-Rated Group 638 | . . . . 88 16 16 16 8 143 23 . . . . 80 638 538 . . . . . 139 64 10 . Highest-Rated Ally 139 | . . . . 16 8 8 8 8 31 23 . . . . 56 50 50 . . . . . 139 64 10 . Total Orders 45 | . . . . 3 4 . . . . . . 2 5 1 2 . 11 2 3 . . . 1 1 . 10 STAY 4 | . . . . 1 2 . . . . . . . . . . . 1 . . . . . . . . . FOLLOW 2 | . . . . . 2 . . . . . . . . . . . . . . . . . . . . . EXPLORE 15 | . . . . 2 . . . . . . . 2 4 1 2 . 4 . . . . . . . . . RETURN 24 | . . . . . . . . . . . . . 1 . . . 6 2 3 . . . 1 1 . 10 Ally Attacks 339 | . . . . 70 18 . . . 8 . . . . . 3 94 124 . . . . . 20 2 . . Total Damage 9625 | . . . . 558 164 . . . 64 . . . . . 110 4220 3118 . . . . . 1331 60 . . Kills 49 | . . . . 9 2 . . . 2 . . . . . 2 9 18 . . . . . 7 . . . Allies Corrupted 2 | . . . . . . . 1 . . . . . . . . . 1 . . . . . . . . . Allies Melted 1 | . . . . . . . . . . . . . . . . . . . . . . . . . . 1 Intel | -11 -10 -10 -9 -9 -9 -9 -6 -6 -6 -5 -5 -5 -5 -4 -4 -4 -4 -4 -4 -4 -3 -3 -3 -2 -2 -2 ------- Run | Yrd Mat Min Mat Sto Rec Scr Fac Was Fac Fac Upp Upp War Pro Fac Was Fac Upp Upp Zhi Pro Res Tes Res Qua Frg Active Infowar (turns) 13195 | 34 1099 314 24 . . . 134 32 270 825 316 320 522 1132 200 165 703 583 276 179 338 256 798 41 220 4414 Optics 8328 | . . . . . . . 130 32 270 825 316 320 522 1132 200 165 703 162 . . . . . . . 3551 Sensors 3588 | . . . . . . . . . . 203 316 320 522 1092 59 . . . . . . . 437 . 139 500 IFF 2256 | . . . . . . . . . . . . . . . 1 143 376 583 276 179 338 256 104 . . . Terrain 1 | . . . . . . . . . . . . . . . . . . 1 . . . . . . . . Seismic 1471 | 34 1099 314 24 . . . . . . . . . . . . . . . . . . . . . . . Decoding 1276 | . . . . . . . . . . . . . . 179 200 165 563 169 . . . . . . . . T.N.C. 1093 | . . . . . . . . . . 308 316 320 149 . . . . . . . . . . . . . Machine Analysis 4548 | . . . . . . . 134 32 270 825 316 320 522 1132 200 165 632 . . . . . . . . . Cloaking 609 | . . . . . . . . . . . . . . . . . . . . . . . . . . 609 Jamming 3077 | . . . . . . . . . 6 . . . . . 2 . 94 50 . 158 338 256 798 41 220 1114 ECM 140 | . . . . . . . . . . . . . . . . . . . . . . . . . 58 82 Robot Analysis Total 7 | . 2 . . . . . . . . . . . . . . . . . . 4 . . . 1 . . Derelict Logs Recovered 7 | . . 1 . . . . . . . . 3 . . 2 . . . . 1 . . . . . . . Drone Launches 156 | . . . . 4 . . . . . . . 2 63 18 1 . 23 3 9 . . . 1 3 . 29 Drone Recoveries 79 | . . . . . . . . . . . . 1 1 18 . . 14 3 9 . . . 1 3 . 29 Decoded 0b10 Intel 25 | . . . . . . . . . . . . . . . 5 3 17 . . . . . . . . . Traps 4 | . . . . . . . . . . . . . . . 1 . 3 . . . . . . . . . Emergency Access 2 | . . . . . . . . . . . . . . . . . 2 . . . . . . . . . Items 16 | . . . . . . . . . . . . . . . 2 3 11 . . . . . . . . . Machines 2 | . . . . . . . . . . . . . . . 1 . 1 . . . . . . . . . Patrols 1 | . . . . . . . . . . . . . . . 1 . . . . . . . . . . . Exploration | -11 -10 -10 -9 -9 -9 -9 -6 -6 -6 -5 -5 -5 -5 -4 -4 -4 -4 -4 -4 -4 -3 -3 -3 -2 -2 -2 ------------- Run | Yrd Mat Min Mat Sto Rec Scr Fac Was Fac Fac Upp Upp War Pro Fac Was Fac Upp Upp Zhi Pro Res Tes Res Qua Frg Turns Passed 20481 | 124 1099 1103 1269 924 974 2036 134 32 270 825 316 320 522 1132 200 165 703 583 276 179 338 256 972 346 220 5163 Spaces Moved 22316 | 85 715 712 598 449 459 1379 264 94 595 810 649 534 1059 1132 523 183 1463 870 451 439 700 771 1497 804 542 4539 Core 133 | 15 . . . . . . . . . 118 . . . . . . . . . . . . . . . . Treads 2457 | . 35 . 352 449 459 1162 . . . . . . . . . . . . . . . . . . . . Legs 1266 | . . . . . . . . . . . . . . . . . . . . . . . 1 . . 1265 Wheels 1708 | 70 680 712 246 . . . . . . . . . . . . . . . . . . . . . . . Hover 2959 | . . . . . . . . . . 227 . . . . . . . . . . . . . . . 2732 Flight 13793 | . . . . . . 217 264 94 595 465 649 534 1059 1132 523 183 1463 870 451 439 700 771 1496 804 542 542 Fastest Speed 6 | 50 95 105 101 160 160 31 27 27 27 40 32 32 25 25 21 21 19 26 29 20 20 6 6 14 22 22 Average Speed 57 | 91 110 141 147 160 160 139 33 27 32 45 32 32 27 33 24 23 26 28 29 23 20 19 20 22 28 68 Slowest Speed 280 | 100 160 145 160 160 160 174 104 27 107 60 40 32 32 101 27 25 37 29 29 91 20 25 100 26 104 280 Overloaded Moves 122 | . . . . . . . . . . . . . . . . . 4 . . . . 34 25 36 13 10 Propulsion Burnouts . | . . . . . . . . . . . . . . . . . . . . . . . . . . . Robots Hopped 82 | . . . . . . . . 2 4 2 1 . 5 11 4 . 5 1 . . . 19 14 11 2 1 Potential Cave-ins 4 | . . . . . . . . . . . . . . . . . . . . . . . . . . 4 Cave-ins Triggered . | . . . . . . . . . . . . . . . . . . . . . . . . . . . Teleports 15 | . . . . . . . . . . . . . . . . . . . . . . . . . . 15 Exploration Rate (%) 61 | 5 99 97 42 80 96 75 10 94 20 20 86 54 97 80 20 89 33 80 53 60 79 24 88 25 63 84 Regions Visited 26 Branch Regions 15 Pre-discovered Areas 12 | . . 1 . . 4 . . . 1 . 1 . . . . . . 1 . 3 . . 1 . . . Known Exits Taken 8 | . . . 1 . 1 . . . 1 1 . . . . . . 1 . . . . 1 1 1 . . Unknown Exits Taken 14 | 1 1 1 . 1 . 1 . . . . 1 1 1 1 . . . 1 1 1 1 . . . 1 . Scrap Searched 18 | . . 1 . . . 3 . . . . 2 . . 4 . . . 3 2 . 3 . . . . . Spaces Dug 206 | . 7 . 18 9 . . . . 26 5 . 1 1 . 15 . 7 . 3 . . 40 14 10 1 49 Terrain Destroyed 641 | . 7 . 32 10 . . . . 26 26 . 1 1 4 21 . 40 96 5 . . 49 23 11 2 287 Melee 14 | . . . . . . . . . 1 1 . . . . . . . . . . . . 4 8 . . Projectile 298 | . . . 3 1 . . . . . 4 . 1 1 4 2 . 19 1 5 . . 23 12 3 2 217 AOE 322 | . 7 . 29 9 . . . . 25 21 . . . . 19 . 21 95 . . . 26 . . . 70 Terrain Rammed . | . . . . . . . . . . . . . . . . . . . . . . . . . . . Walls Destroyed . | . . . . . . . . . . . . . . . . . . . . . . . . . . . Machines Disabled . | . . . . . . . . . . . . . . . . . . . . . . . . . . . Actions | -11 -10 -10 -9 -9 -9 -9 -6 -6 -6 -5 -5 -5 -5 -4 -4 -4 -4 -4 -4 -4 -3 -3 -3 -2 -2 -2 --------- Run | Yrd Mat Min Mat Sto Rec Scr Fac Was Fac Fac Upp Upp War Pro Fac Was Fac Upp Upp Zhi Pro Res Tes Res Qua Frg Total 28292 | 114 896 770 834 563 668 1494 300 97 671 1208 748 680 1276 1813 576 304 1715 1174 586 500 890 823 2036 930 589 6037 Wait 3602 | . 93 20 70 34 179 70 19 . 33 329 91 145 164 619 9 113 152 240 122 6 172 22 302 60 7 531 Move 22147 | 84 714 711 597 448 458 1378 264 90 588 805 646 533 1049 1115 516 182 1452 867 450 438 699 736 1470 783 537 4537 Hop 64 | . . . . . . . . 1 3 2 1 . 4 5 3 . 5 1 . . . 15 12 9 2 1 Pick Up 225 | 12 9 7 22 8 4 14 2 4 11 7 3 . 6 4 1 . 4 7 1 4 . 3 11 . 3 78 Fast Attach 251 | 2 2 . 17 4 . 2 5 1 4 11 3 . 13 2 8 5 13 5 1 15 3 10 34 12 8 71 Attach 100 | 5 . 7 4 1 . 6 4 . 9 3 2 . 2 . 2 . 3 5 2 2 . 2 5 3 1 32 Detach 31 | . . . 3 . . . 1 . 4 1 . . . . 2 . 1 . . 2 . . 2 3 . 12 Swap 149 | 1 7 5 13 9 4 1 . . 3 1 . . 3 5 4 . 11 4 . 2 . . 6 3 3 64 Drop 364 | 1 6 1 26 11 5 21 1 1 13 8 1 . 19 7 7 4 20 11 1 17 3 5 37 8 9 121 Fire 992 | 9 65 19 82 47 15 . . . 2 28 1 2 1 55 12 . 45 25 9 14 7 30 104 18 6 396 Melee 183 | . . . . . 3 2 4 . 1 13 . . . . . . . . . . . . 22 28 13 97 Ram . | . . . . . . . . . . . . . . . . . . . . . . . . . . . Kick . | . . . . . . . . . . . . . . . . . . . . . . . . . . . Crush . | . . . . . . . . . . . . . . . . . . . . . . . . . . . Escape Stasis 6 | . . . . . . . . . . . . . . . . . . . . . . . . . . 6 Rewire 39 | . . . . . . . . . . . . . . . 10 . . . . . . . 28 1 . . Trap 39 | . . . . . . . . . . . . . . 1 2 . 5 9 . . 6 . 3 2 . 11 Miscellaneous 100 | . . . . 1 . . . . . . . . 15 . . . 4 . . . . . . . . 80 Route ------- -11/Scrapyard -10/Materials (discovered 5 exits: *Mat x3 / [*Min] / [*Sub]) -10/Mines (discovered 2 exits: *Mat x2) -9/Materials (discovered 5 exits: [*Mat] / Min x2 / *Sto x2) -9/Storage (discovered 2 exits: [*Mat] / *Rec) -9/Recycling (discovered 2 exits: [*Fac] / *Scr) -9/Scraptown -6/Factory -6/Waste -6/Factory -5/Factory (discovered 4 exits: *Upp x2 / Ext x2) -5/Upper Caves -5/Upper Caves -5/Warlord -4/Proximity Caves -4/Factory (discovered 2 exits: *Res / Arm) -4/Waste -4/Factory (discovered 4 exits: *Res / *Upp x2 / Arm) -4/Upper Caves -4/Upper Caves -4/Zhirov -3/Proximity Caves -3/Research (discovered 2 exits: *Tes x2) -3/Testing -2/Research (discovered 4 exits: Acc x2 / *Qua x2) -2/Quarantine (discovered 3 exits: *Acc / [*Sec] / *Frg) -2/Protoforge (discovered 1 exit: *Acc) History --------- Turn | Location | Event 57 | -11/Scrapyard | Discovered new exit (range 13) 125 | -11/Scrapyard | Entered Materials 212 | -10/Materials | Discovered new exit (range 15) 318 | -10/Materials | Build established: Mutant 510 | -10/Materials | Discovered new exit (range 6) 617 | -10/Materials | Discovered new exit (range 7) 754 | -10/Materials | Discovered new exit (range 11) 810 | -10/Materials | Discovered new exit (range 7) 1224 | -10/Materials | Entered Mines 1239 | -10/Mines | Learned Materials trap positions 1312 | -10/Mines | Discovered new exit (range 8) 1405 | -10/Mines | Discovered new exit (range 8) 1471 | -10/Mines | YI-UF0 nonchalantly dropped a Grenade Launcher on the ground 2006 | -10/Mines | Learned location of Storage (-9) 2246 | -10/Mines | Destroyed YI-UF0 2274 | -10/Mines | Lost 8 parts (1p3n1u3w) 2327 | -10/Mines | Entered Materials 2327 | -9/Materials | Evolved 2 slots: Propulsion x2 2328 | -9/Materials | Loaded intel: 23 trap records 2384 | -9/Materials | Discovered new exit (range 5) 2532 | -9/Materials | Lost 6 parts (1p2n1u2w) 2950 | -9/Materials | Discovered new exit (range 13) 3101 | -9/Materials | Discovered new exit (range 16) 3495 | -9/Materials | Identified exit to Mines 3495 | -9/Materials | Identified exit to Storage 3596 | -9/Materials | Entered Storage 3621 | -9/Storage | Assisted by bots powering up and referring to "LRC-V3" 3921 | -9/Storage | Build established: Commander-Mutant 4025 | -9/Storage | Lost 3 allies 4070 | -9/Storage | Discovered new exit (range 16) 4514 | -9/Storage | Used back door to open Recycling access 4514 | -9/Storage | Discovered new exit (range 5) 4520 | -9/Storage | Entered Recycling 4520 | -9/Recycling | Accompanied by 2 allies 4776 | -9/Recycling | Build established: Mutant 5078 | -9/Recycling | Discovered new exit (range 15) 5211 | -9/Recycling | Identified exit to Scraptown 5257 | -9/Recycling | Learned location of Mines (-9) 5271 | -9/Recycling | Scanned before Scraplab entrance 5292 | -9/Recycling | Learned 2 Materials zone layouts 5319 | -9/Recycling | Learned Storage emergency access door positions 5336 | -9/Recycling | Learned Storage stockpile data 5363 | -9/Recycling | Learned Storage stockpile data 5475 | -9/Recycling | Entered Scraplab 5494 | -9/Recycling | Entered Scraptown 5494 | -9/Scraptown | Accompanied by 2 allies 5494 | -9/Scraptown | System corruption cleaned by C-Scrubber 5707 | -9/Scraptown | Visited CPS Storage 5730 | -9/Scraptown | Visited Assassins FH 5750 | -9/Scraptown | Visited Spacefarers 5792 | -9/Scraptown | Visited TADAMA 5802 | -9/Scraptown | Visited Comm Corps 5819 | -9/Scraptown | Visited Cyclists 5864 | -9/Scraptown | Visited Symbiants 6245 | -9/Scraptown | Visited UFD Registry 6245 | -9/Scraptown | Registered with UFD as "Electrobomber" 6298 | -9/Scraptown | Visited Abandonware Association 6320 | -9/Scraptown | Learned abandonware demo "KABOOM.EXE" 6320 | -9/Scraptown | Learned abandonware demo "REBOOT5.EXE" 6357 | -9/Scraptown | Visited Junk Cannon Lab 6378 | -9/Scraptown | Visited Chapter 10 6405 | -9/Scraptown | Visited Scrap Suit Storage 6426 | -9/Scraptown | Visited Scrapoid Research Area 6440 | -9/Scraptown | Visited Junk Repository 6488 | -9/Scraptown | Visited Observation Area 6517 | -9/Scraptown | Visited Junk Repository 6788 | -9/Scraptown | Found Prototype Special Weapon 6788 | -9/Scraptown | Identified Junk Cannon 7473 | -9/Scraptown | Met Optimus 7473 | -9/Scraptown | Accepted into 0bPrime 7491 | -9/Scraptown | Discovered new exit (range 3) 7530 | -9/Scraptown | Entered Factory 7530 | -6/Factory | Accompanied by 2 allies 7530 | -6/Factory | Evolved 6 slots: Propulsion x1, Utility x5 7634 | -6/Factory | Discovered new exit (range 4) 7636 | -6/Factory | Identified exit to Factory 7664 | -6/Factory | Sucked down chute 7664 | -6/Factory | Entered Waste 7669 | -6/Waste | Spotted C-40 Crusher 7674 | -6/Waste | Spotted C-40 Crusher 7677 | -6/Waste | Spotted C-40 Crusher 7679 | -6/Waste | EMP discharged 7685 | -6/Waste | Spotted C-40 Crusher 7685 | -6/Waste | Spotted C-40 Crusher 7685 | -6/Waste | Spotted C-40 Crusher 7689 | -6/Waste | 1 allies followed down the chute 7692 | -6/Waste | Discovered new exit (range 14) 7695 | -6/Waste | Identified exit to Factory 7696 | -6/Waste | Entered Factory 7760 | -6/Factory | Loaded intel: 8 recycling unit locations 7845 | -6/Factory | Learned location of Protoforge (-2) 7852 | -6/Factory | System corruption reached 10% 7894 | -6/Factory | Scrapoids reinforcements arrived? 7910 | -6/Factory | Lost 7 parts (1p3n3u) 7937 | -6/Factory | Lost 4 allies 7937 | -6/Factory | Core integrity fell below 50% 7964 | -6/Factory | Discovered exit to Factory (range 5) 7966 | -6/Factory | Entered another Factory area 7966 | -5/Factory | Evolved 2 slots: Power x1, Propulsion x1 7987 | -5/Factory | Lost 5 parts (1p4n) 8507 | -5/Factory | Identified exit to Upper Caves 8507 | -5/Factory | Identified exit to Extension 8509 | -5/Factory | Lost 6 parts (2p3n1w) 8574 | -5/Factory | Fabricated A-15 Conveyor? 8706 | -5/Factory | Loaded intel: 8 recycling unit locations 8783 | -5/Factory | Spotted B-75 Beast 8791 | -5/Factory | Entered Upper Caves 8797 | -5/Upper Caves | Encountered a Warlord checkpoint 8815 | -5/Upper Caves | Attracted the attention of an 0b10 checkpoint 8858 | -5/Upper Caves | Lost 5 allies 8897 | -5/Upper Caves | Learned location of Armory (-4) 8905 | -5/Upper Caves | Learned 4 Factory zone layouts 9001 | -5/Upper Caves | Discovered new exit (range 10) 9107 | -5/Upper Caves | Entered another Upper Caves area 9119 | -5/Upper Caves | Build established: Scavenger-Scout 9175 | -5/Upper Caves | Encountered a Warlord checkpoint 9423 | -5/Upper Caves | Discovered new exit (range 9) 9427 | -5/Upper Caves | Entered Warlord 9427 | -5/Warlord | Accompanied by 1 ally 9438 | -5/Warlord | System corruption cleaned by Quarantine Array 9445 | -5/Warlord | Discovered new exit (range 43) 9490 | -5/Warlord | Found Prototype Device 9490 | -5/Warlord | Identified Minesniffer Drone Bay 9580 | -5/Warlord | Found Prototype Device 9580 | -5/Warlord | Identified Exp. Focal Shield 9583 | -5/Warlord | Found Prototype Device 9583 | -5/Warlord | Identified Exp. Phase Shifter 9591 | -5/Warlord | Found Prototype Hackware 9626 | -5/Warlord | Visited the Vortex Lab 9629 | -5/Warlord | Found Prototype Energy Cannon 9629 | -5/Warlord | Identified Vortex Driver 9631 | -5/Warlord | Found Prototype Energy Cannon 9631 | -5/Warlord | Identified Vortex Cannon 9637 | -5/Warlord | Found Vortex Driver 9649 | -5/Warlord | Warlord's base attacked by MAIN.C 9688 | -5/Warlord | Identified Ghost Barrier 9784 | -5/Warlord | P-70 Sage assimilated allied 21-FNG(g) 9905 | -5/Warlord | Opened side exit 9918 | -5/Warlord | Lost 3 allies 9949 | -5/Warlord | Spotted Striker 9949 | -5/Warlord | Entered Proximity Caves 9949 | -4/Proximity Caves | Accompanied by 22 allies 9968 | -4/Proximity Caves | Build established: Hacker-Sprinter 9971 | -4/Proximity Caves | Lost 4 allies 10892 | -4/Proximity Caves | Attracted the attention of an 0b10 checkpoint 10906 | -4/Proximity Caves | Learned 4 Research zone layouts 11020 | -4/Proximity Caves | Discovered new exit (range 5) 11073 | -4/Proximity Caves | Spotted B-86 Titan 11081 | -4/Proximity Caves | Entered Factory 11081 | -4/Factory | Accompanied by 21 allies 11081 | -4/Factory | Evolved 2 slots: Propulsion x1, Utility x1 11082 | -4/Factory | Identified exit to Armory 11100 | -4/Factory | Build established: Trapper-Sprinter 11101 | -4/Factory | Loaded intel: 8 recycling unit locations 11143 | -4/Factory | Lost 3 allies 11160 | -4/Factory | Discovered new exit (range 75) 11196 | -4/Factory | Fabricated K-01 Serf? 11265 | -4/Factory | Lost 9 allies 11281 | -4/Factory | Manually triggered Chute Trap 11281 | -4/Factory | Sucked down chute 11281 | -4/Factory | Entered Waste 11283 | -4/Waste | Spotted C-40 Crusher 11289 | -4/Waste | Spotted C-40 Crusher 11303 | -4/Waste | Spotted C-40 Crusher 11308 | -4/Waste | Warlord forces began an assault 11318 | -4/Waste | Allies destroyed C-40 Crusher 11347 | -4/Waste | Spotted C-40 Crusher 11356 | -4/Waste | Spotted C-40 Crusher 11363 | -4/Waste | Allies destroyed C-40 Crusher 11365 | -4/Waste | Allies destroyed C-40 Crusher 11366 | -4/Waste | Spotted C-40 Crusher 11368 | -4/Waste | Allies destroyed C-40 Crusher 11373 | -4/Waste | Allies destroyed C-40 Crusher 11386 | -4/Waste | Discovered new exit (range 12) 11396 | -4/Waste | Lost 4 allies 11446 | -4/Waste | Entered Factory 11446 | -4/Factory | Accompanied by 14 allies 11520 | -4/Factory | Loaded intel: 8 recycling unit locations 11728 | -4/Factory | Lost 3 allies 11813 | -4/Factory | Spotted B-86 Titan 11891 | -4/Factory | Lost 8 allies 11937 | -4/Factory | Identified exit to Upper Caves 11962 | -4/Factory | Lost 5 allies 11979 | -4/Factory | Discovered new exit (range 8) 12074 | -4/Factory | Found Prototype Launcher 12074 | -4/Factory | Identified Com. Tesla Bomb Launcher 12115 | -4/Factory | Noticed UFD Elites at a Recycling Unit 12149 | -4/Factory | Entered Upper Caves 12160 | -4/Upper Caves | Learned Factory terminal intel 12651 | -4/Upper Caves | Destroyed 7 combat bots 12680 | -4/Upper Caves | Discovered new exit (range 6) 12732 | -4/Upper Caves | Entered another Upper Caves area 12860 | -4/Upper Caves | Build established: Hacker-Sprinter 12974 | -4/Upper Caves | Learned Research terminal intel 12995 | -4/Upper Caves | Discovered new exit (range 15) 13008 | -4/Upper Caves | Entered Zhirov 13008 | -4/Zhirov | Discovered new exit (range 3) 13015 | -4/Zhirov | Met Zhirov 13020 | -4/Zhirov | Learned location of Quarantine (-2) 13020 | -4/Zhirov | Learned location of Testing (-3) 13020 | -4/Zhirov | Learned location of Command (-1) 13023 | -4/Zhirov | Zhirov requested help retrieving the SGEMP Prototype 13028 | -4/Zhirov | Found Alien Artifact 13028 | -4/Zhirov | Identified Integrated Reactor 13028 | -4/Zhirov | Installed Integrated Reactor, increased core energy generation (+10) 13169 | -4/Zhirov | Found Alien Artifact 13187 | -4/Zhirov | Entered Proximity Caves 13241 | -3/Proximity Caves | Spotted B-86 Titan 13500 | -3/Proximity Caves | Discovered new exit (range 9) 13525 | -3/Proximity Caves | Entered Research 13525 | -3/Research | Evolved 2 slots: Utility x2 13527 | -3/Research | Loaded intel: 22 terminal locations 13532 | -3/Research | Identified Transdimensional Reconstructor 13539 | -3/Research | Loaded intel: 5 recycling unit locations 13558 | -3/Research | Identified exit to Testing 13775 | -3/Research | Search patrols dispatched 13779 | -3/Research | Found Gamma Bomb Array 13781 | -3/Research | Entered Testing 13788 | -3/Testing | Lost 3 parts (1n1u1w) 13829 | -3/Testing | Found Prototype Device 13829 | -3/Testing | Identified AEGIS Remote Shield 13860 | -3/Testing | Found Prototype Ballistic Gun 13860 | -3/Testing | Identified Hyp. Multirail 13916 | -3/Testing | Found Prototype Device 13916 | -3/Testing | Identified 2N-1CE's Frost Array 14049 | -3/Testing | Rewired PG-LYGRQH9SSN 14088 | -3/Testing | Found Prototype Energy Cannon 14088 | -3/Testing | Identified Null Cannon 14177 | -3/Testing | Learned location of 1 exit from Research 14223 | -3/Testing | Learned 4 Research zone layouts 14258 | -3/Testing | Learned Research emergency access door positions 14273 | -3/Testing | Found Prototype Device 14273 | -3/Testing | Identified Femtoactuators 14282 | -3/Testing | Identified exit to Research 14296 | -3/Testing | Learned location of 1 exit from Armory 14331 | -3/Testing | Learned Quarantine emergency access door positions 14362 | -3/Testing | Learned 4 Access zone layouts 14378 | -3/Testing | Repaired Hvy. Antimatter Reactor 14410 | -3/Testing | Found Prototype Launcher 14410 | -3/Testing | Identified Adv. Micro-nuke Launcher 14512 | -3/Testing | Found Prototype Launcher 14519 | -3/Testing | Identified Z-bomb Delivery System 14529 | -3/Testing | Found Prototype Leg 14529 | -3/Testing | Identified Myomer Exoskeleton 14531 | -3/Testing | First assault squad dispatched 14560 | -3/Testing | Found Prototype Ballistic Cannon 14560 | -3/Testing | Identified Omega Cannon 14609 | -3/Testing | Found Portable AFG 14715 | -3/Testing | Destroyed 21 combat bots 14742 | -3/Testing | Found Prototype Protection 14744 | -3/Testing | Found Prototype Protection 14744 | -3/Testing | Identified Lgt. Regenerative Plating 14753 | -3/Testing | Entered Research 14753 | -2/Research | Evolved 2 slots: Utility x2 14754 | -2/Research | Identified exit to Access 14760 | -2/Research | Identified exit to Quarantine 14781 | -2/Research | Found Prototype Hackware 14781 | -2/Research | Identified Exp. Hacking Suite 14956 | -2/Research | Loaded intel: 5 recycling unit locations 14959 | -2/Research | Fabricated Assault Drone Bay (x1) 15003 | -2/Research | First assault squad dispatched 15095 | -2/Research | Spotted B-90 Cyclops 15099 | -2/Research | Entered Quarantine 15124 | -2/Quarantine | Found Alien Artifact 15200 | -2/Quarantine | Scanned by Researcher 15212 | -2/Quarantine | Found Alien Reactor 15212 | -2/Quarantine | Identified Matter Drive 15230 | -2/Quarantine | Found Alien Slashing Weapon 15230 | -2/Quarantine | Identified Sigix Broadsword 15238 | -2/Quarantine | Discovered exit to Access (range 13) 15261 | -2/Quarantine | Found Exp. ECM Suite 15290 | -2/Quarantine | Spotted Fortress 15317 | -2/Quarantine | Discovered new exit (range 6) 15317 | -2/Quarantine | Discovered new exit (range 7) 15319 | -2/Quarantine | Entered Protoforge 15324 | -2/Protoforge | Identified SHELL Armor 15324 | -2/Protoforge | Identified Subatomic Replicator 15368 | -2/Protoforge | Spotted Hotshot 15379 | -2/Protoforge | Spotted Hotshot 15414 | -2/Protoforge | Found Prototype Launcher 15414 | -2/Protoforge | Identified Cep. Concussive Dispersal Blaster 15431 | -2/Protoforge | Spotted V462-o 15543 | -2/Protoforge | Superfortress began startup sequence 15567 | -2/Protoforge | Spotted Immortal 15567 | -2/Protoforge | Spotted Immortal 15621 | -2/Protoforge | Spotted Decapitator 15621 | -2/Protoforge | Spotted Decapitator 15621 | -2/Protoforge | Spotted Decapitator 15621 | -2/Protoforge | Spotted Decapitator 15628 | -2/Protoforge | Destroyed Immortal 15630 | -2/Protoforge | Destroyed Immortal 15639 | -2/Protoforge | System corruption reached 10% 15690 | -2/Protoforge | Destroyed Hotshot 15696 | -2/Protoforge | Destroyed Hotshot 15798 | -2/Protoforge | Found Cep. Reaction Jets 15803 | -2/Protoforge | Found Cep. Phase Shift Module 15806 | -2/Protoforge | Found Cep. Core Shell 15811 | -2/Protoforge | Found Faulty Cep. Reaction Jets 15817 | -2/Protoforge | Found Cep. Projectile Intercept Suite 15870 | -2/Protoforge | Destroyed Decapitator 15870 | -2/Protoforge | Destroyed Decapitator 15872 | -2/Protoforge | Destroyed Decapitator 15872 | -2/Protoforge | Destroyed Decapitator 15993 | -2/Protoforge | Found Prototype Processor 15993 | -2/Protoforge | Identified Exp. Targeting Computer 16131 | -2/Protoforge | Destroyed V462-o 16211 | -2/Protoforge | Build established: Scavenger-Gladiator 16431 | -2/Protoforge | Found Cep. Chromion Battery 16441 | -2/Protoforge | Spotted V741-u 16446 | -2/Protoforge | Spotted V267-v 16447 | -2/Protoforge | Spotted V556-q 16477 | -2/Protoforge | Destroyed V267-v 16512 | -2/Protoforge | Destroyed V556-q 16516 | -2/Protoforge | Destroyed V741-u 16525 | -2/Protoforge | Found Cep. Gyrokinetic System 16528 | -2/Protoforge | Found Prototype Device 16528 | -2/Protoforge | Identified Exp. Actuator Array 16532 | -2/Protoforge | Lost 4 parts (1p2n1w) 16563 | -2/Protoforge | Found Cep. Antigrav Storage Unit 16568 | -2/Protoforge | Found Cep. Chromion Battery 16595 | -2/Protoforge | Found Faulty Cep. Matter Streamer 16597 | -2/Protoforge | Found Faulty Cep. Matter Streamer 16600 | -2/Protoforge | Found Faulty Cep. Matter Streamer 16603 | -2/Protoforge | Found Cep. Chromion Battery 16677 | -2/Protoforge | Found Cep. NT7 Matterbank 16680 | -2/Protoforge | Found Cep. Matter Streamer 16690 | -2/Protoforge | Found Cep. NT7 Matterbank 16692 | -2/Protoforge | Found Cep. Chromion Battery 16736 | -2/Protoforge | Found Prototype Device 16737 | -2/Protoforge | Identified Crosscalibrator 16745 | -2/Protoforge | Found Prototype Device 16747 | -2/Protoforge | Found Prototype Device 16802 | -2/Protoforge | Build established: Scavenger-Mutant 16884 | -2/Protoforge | Found Cep. Core Shell 16894 | -2/Protoforge | Found Exp. Force Field 17175 | -2/Protoforge | Spotted V892-u 17186 | -2/Protoforge | Found Exp. Kinecellerator 17188 | -2/Protoforge | Found Cep. Countertargeting System 17238 | -2/Protoforge | Spotted Decapitator 17238 | -2/Protoforge | Spotted Decapitator 17242 | -2/Protoforge | Destroyed Decapitator 17244 | -2/Protoforge | Destroyed Decapitator 17308 | -2/Protoforge | Found Cep. Zero-point Core 17322 | -2/Protoforge | Found Faulty Cep. Zero-point Core 17440 | -2/Protoforge | Identified Cep. Recoil Nullifier (x2) 17440 | -2/Protoforge | Forge Plexus network access discovered 17569 | -2/Protoforge | First assault squad dispatched 17747 | -2/Protoforge | Found Cep. Plasma Driver 17750 | -2/Protoforge | Found Cep. Lightning Penetrator 17756 | -2/Protoforge | Found Cep. Helical Railcannon 17779 | -2/Protoforge | Found Exp. Jetlance 17782 | -2/Protoforge | Found Faulty Cep. Plasma Driver 17810 | -2/Protoforge | Found Cep. Heavy Railcannon 17817 | -2/Protoforge | Found Faulty Cep. Heavy Railcannon 17835 | -2/Protoforge | Found Cep. Plasma Driver 17840 | -2/Protoforge | Found Cep. Heavy Railcannon 17982 | -2/Protoforge | Spotted Immortal 17982 | -2/Protoforge | Spotted Immortal 17999 | -2/Protoforge | Destroyed Immortal 18005 | -2/Protoforge | Destroyed Immortal 18010 | -2/Protoforge | Spotted V575-p 18021 | -2/Protoforge | Spotted V476-d 18027 | -2/Protoforge | Spotted V545-k 18039 | -2/Protoforge | Destroyed V575-p 18045 | -2/Protoforge | Destroyed V476-d 18066 | -2/Protoforge | Found Cep. Combat Aerolev Unit 18095 | -2/Protoforge | Found Cep. Gyrokinetic System 18098 | -2/Protoforge | Found Prototype Processor 18098 | -2/Protoforge | Identified Exp. Core Analyzer 18158 | -2/Protoforge | Found Faulty Cep. Biometal Exoskeleton 18191 | -2/Protoforge | Found Faulty Cep. Biometal Exoskeleton 18419 | -2/Protoforge | Additional patrols dispatched to research labs 18485 | -2/Protoforge | Found Cep. Nanofilaments [Conductive] 18485 | -2/Protoforge | Installed Cep. Nanofilaments [Conductive], 2 resistances modified: TH -15%, EM +25% 18496 | -2/Protoforge | Found Cep. Navigation Harness 18516 | -2/Protoforge | Build established: Mutant 18585 | -2/Protoforge | Spotted AP7-3 18585 | -2/Protoforge | Spotted AP7-3 18613 | -2/Protoforge | Destroyed AP7-3 18640 | -2/Protoforge | Destroyed AP7-3 18758 | -2/Protoforge | Found Cep. Impact Drone Bay 18762 | -2/Protoforge | Found Cep. Dimensional Manipulator 18764 | -2/Protoforge | Found Cep. Cloak Mesh 18893 | -2/Protoforge | Found Cep. Gyrokinetic System 18984 | -2/Protoforge | Destroyed 8 combat bots 19233 | -2/Protoforge | Spotted EXE-6 19233 | -2/Protoforge | Spotted EXE-6 19247 | -2/Protoforge | UFD initiated attack on Protoforge (Readiness: High) 19247 | -2/Protoforge | Loaded intel: 3 recycling unit locations 19281 | -2/Protoforge | Spotted Overlord 19281 | -2/Protoforge | Spotted SKR-2 19281 | -2/Protoforge | Spotted SKR-2 19281 | -2/Protoforge | Spotted SKR-2 19289 | -2/Protoforge | Optimus greeted in Protoforge 19341 | -2/Protoforge | Fabricated Biometal Heavy Treads (x1) 19369 | -2/Protoforge | Found Exp. Core Analyzer 19370 | -2/Protoforge | Fabricated Exp. Optical Array? 19380 | -2/Protoforge | Found Prototype Device 19380 | -2/Protoforge | Identified Adv. Kinecellerator 19402 | -2/Protoforge | Spotted EXE-6 19402 | -2/Protoforge | Spotted EXE-6 19403 | -2/Protoforge | Spotted AP7-3 19403 | -2/Protoforge | Spotted AP7-3 19417 | -2/Protoforge | System corruption reached 30% 19452 | -2/Protoforge | Found UFD Drillbomb 19489 | -2/Protoforge | Lost 11 allies 19489 | -2/Protoforge | Installed UFD Drillbomb at designated target 19489 | -2/Protoforge | UFD reported confirmed Drillbomb installation 19500 | -2/Protoforge | Found UFD Drillbomb 19526 | -2/Protoforge | Installed UFD Drillbomb at designated target 19526 | -2/Protoforge | UFD reported confirmed Drillbomb installation 19554 | -2/Protoforge | Found UFD Drillbomb 19572 | -2/Protoforge | UFD reported confirmed Drillbomb installation 19606 | -2/Protoforge | Installed UFD Drillbomb at designated target 19606 | -2/Protoforge | UFD reported confirmed Drillbomb installation 19663 | -2/Protoforge | Found UFD Drillbomb 19679 | -2/Protoforge | UFD reported confirmed Drillbomb installation 19716 | -2/Protoforge | Spotted Hotshot 19722 | -2/Protoforge | Destroyed Hotshot 19724 | -2/Protoforge | Spotted Hotshot 19727 | -2/Protoforge | Destroyed Hotshot 19748 | -2/Protoforge | Installed UFD Drillbomb at designated target 19748 | -2/Protoforge | UFD reported confirmed Drillbomb installation 19817 | -2/Protoforge | Found UFD Drillbomb 19846 | -2/Protoforge | Spotted Striker 19901 | -2/Protoforge | Installed UFD Drillbomb at designated target 19901 | -2/Protoforge | UFD reported confirmed Drillbomb installation 19932 | -2/Protoforge | Found UFD Drillbomb 19940 | -2/Protoforge | Spotted Striker 19948 | -2/Protoforge | Spotted Striker 19954 | -2/Protoforge | Destroyed Striker 19955 | -2/Protoforge | Spotted Executioner 19956 | -2/Protoforge | Spotted Striker 19962 | -2/Protoforge | Destroyed Executioner 19964 | -2/Protoforge | Destroyed Striker 20010 | -2/Protoforge | Destroyed 9 combat bots 20010 | -2/Protoforge | Installed UFD Drillbomb at designated target 20010 | -2/Protoforge | UFD reported confirmed Drillbomb installation 20038 | -2/Protoforge | Found UFD Drillbomb 20043 | -2/Protoforge | Spotted Executioner 20044 | -2/Protoforge | Spotted Executioner 20060 | -2/Protoforge | Destroyed Executioner 20065 | -2/Protoforge | Destroyed Executioner 20088 | -2/Protoforge | Found Scrap Suit 20103 | -2/Protoforge | Destroyed 11 combat bots 20111 | -2/Protoforge | Lost 15 allies 20117 | -2/Protoforge | Spotted Hotshot 20117 | -2/Protoforge | Spotted Hotshot 20130 | -2/Protoforge | Installed UFD Drillbomb at designated target 20130 | -2/Protoforge | UFD reported confirmed Drillbomb installation 20131 | -2/Protoforge | Spotted Executioner 20132 | -2/Protoforge | Spotted Executioner 20137 | -2/Protoforge | Spotted Hotshot 20137 | -2/Protoforge | Spotted Hotshot 20138 | -2/Protoforge | Core integrity fell below 50% 20149 | -2/Protoforge | Destroyed Executioner 20152 | -2/Protoforge | Spotted B-90 Cyclops 20171 | -2/Protoforge | Spotted Executioner 20191 | -2/Protoforge | Found UFD Drillbomb 20202 | -2/Protoforge | Spotted Striker 20206 | -2/Protoforge | Spotted Striker 20209 | -2/Protoforge | Destroyed Striker 20305 | -2/Protoforge | Lost 16 allies 20382 | -2/Protoforge | Installed UFD Drillbomb at designated target 20382 | -2/Protoforge | UFD reported confirmed Drillbomb installation 20383 | -2/Protoforge | UFD began Drillbomb countdown 20405 | -2/Protoforge | Spotted Striker 20407 | -2/Protoforge | Spotted Striker 20411 | -2/Protoforge | Destroyed Striker 20423 | -2/Protoforge | P-80 Master assimilated allied 02F86-D 20461 | -2/Protoforge | Spotted Executioner 20480 | -2/Protoforge | Used Subatomic Replicator to create Alien Artifact 20482 | -2/Protoforge | Identified Supercharged TR 20482 | -2/Protoforge | Warped through subspace 20483 | -2/Protoforge | Buried in Protoforge collapse! Last Messages --------------- 20464_ Executioner knocked back. 20466_ Acquired 4 matter. 20468_ Acquired 92 matter. 20473_ 0bP_NET: LISTEN AND RECITE! 20474_ 0bP_NET: Dude, not now. 20475_ 0bP_NET: Oh c'mon, can't we all just count together? 20476_ 0bP_NET: Fine. T-7, in case you lost count already. 20477_ 0bP_NET: Before the zero cycle! 20478_ 0bP_NET: Dammit not like that... 20479_ 0bP_NET: Okay how about this, the iron fist is going to be less iron in T-4. 20480_ 0bP_NET: That's a little better. 20480_ Dropped Transdimensional Reconstructor. 20480_ Local interference in replication process, created Alien Artifact. 20481_ 0bP_NET: PRAISE BE TO GREAT NUT! 20482_ 0bP_NET: Dammit, I said..., ugh, T-1 folks! Take cover! 20482_ N-04 Retriever inserts Ovr. Medium Treads into Forge Plexus. 20482_ Acquired Alien Artifact. 20482_ Identified Supercharged TR. 20482_ Warped through subspace. Map ----- +----------------------------------------------------+ | ??## ##????????????????????????????????????????? | | ??#" ##????????????????????????????????????????? | | ??##% ##????##########??????????????????????????? | | #### ##????##########??????????????????????????? | | ###"= ##???### """ ##??????????????????????????? | | % "##??# # " " ##??????????????????????????? | | " # ###### " " ##??????????????????????????? | | #### " ## ### ##??????????????????????????? | | ####%%%# # ### ##??????????????????????????? | | ??##%% # ##" ##??????????????????????????? | | ??#" ="""""#"#"#""####??????????????????????????? | | ??#" *%![%% " ####??????????????????????????? | | ?##"!%[" =% # ##????????????????????????????? | | ?# =%![! # ##????????????????????????????? | | # = =!= # ##????????????????????????????? | | # *!%[==* " ##????????????????????????????? | | # =%!!=%% " ##????????????????????????????? | | ##!!%!!#= == " "#????????????????????????????? | | ## !!! #!] %* %;%"##########???????????????????? | | ###" %#""!;#;#;; "########;#???????????????????? | | %] [%!%% # ;#???????????????????? | | % = ! %!%%=% + " " ;#???????????????????? | | !%& !*% ==% ; " " ##???????????????????? | | #"#""*!"""!= %%%[; " " ##???###?????????????? | | ;^[! ; ##???# #??????????#??? | | """ " " # ^ !!![**[; 3@ ##### #?????????# ??? | | """ " " # =%!%!%%%;;#;#SS; # ## #????????# ???? | | """ "" "=!%!*!% %%SS; # ###?????# #???? | | "" " " %==%[!%% % %& ; # # #??### #????? | | # [[ [![=|%%% # ##### #????? | | #############"##"[!!=!["" !# # # #?????? | | ###### ; !!"%==" #####??? | | ????## #!|%![!"%%%"* """####??? | | ????## # %!%[ # = " ##### | | ????## [; =!%*= !!!!=!!!! %" "#### | | ????## =[ %!%= %!%%%%%%%%% %%% """ ""### | | ????## *!= !=]!!!%* %=[[%%=%!%%%%% % % " % ""### | | ######!=!!!/! % %!%=[!!%*%!%%%*%%%""%""%% " | | ######==#!"%" !=!" =%!!![! =!% !=!"!![ " """#% | | %=*%]%! %[%%%!%!= %% " = %" = "% "##" | | %!!*%![ [!%%%%[!n % % %%% % "% " #""# | | [=*!%* %==%*=%[%%% %% """"""""%##"% "# " | | !!=!!% %%=%%[*!*!!!%% %" "% %""""%""#" | | #####=! *!"""""["=[!%!!! %= " % % | | # %=!!=%= %!![!%!%*= " | | # ##/# *!!|!%=! " %% | | # # ?#### !!][%%!| ###" ###+"##### | | # ##????# !!!%*%!*[!## #" %"" ## | | # ######## !!%%%%!###"#"" #" """ ## | | # ########## ##[ # " ## " "" ## | +----------------------------------------------------+ Best States ------------- Heat Dissipation 177 Energy Generation 55 Energy Capacity 2850 Matter Stores 300 Matter Capacity 300 Sight Range 22 Robot Scan Range 16 Terrain Scan Density 10 ECM Strength 3 Jamming Range 16 Cloak Strength 6 Additional Mass Support 30 Corruption Block 15 Armor Coverage 900 Resistance: KI 20 Resistance: TH 10 Resistance: EM 25 Core Shielding 90 Propulsion Shielding 15 Weapon Shielding 90 Melee Speed Boost 50 Phase Shifting 25 Evasion (%) 88 Melee Accuracy 8 Launcher Accuracy 40 Core Analysis 8 Recoil Reduction 4 Matter Filtering 50 Kinecelleration 66 Salvage Targeting 4 Offensive Hacking 44 Defensive Hacking 20 Authchip Count 3 Trap Extractor Capacity 8 Item Schematics ----------------- Weapon Cycler | -9/Storage | Hacked Force Booster | -9/Recycling | Hacked Assault Drone Bay | -4/Zhirov | Free Exp. Heat Sink | -4/Zhirov | Free Exp. Optical Array | -4/Zhirov | Free Imp. Arc Thrower | -4/Zhirov | Free Imp. Energy Well | -3/Testing | Archive Exp. Signal Interpreter | -3/Testing | Archive Helical Railgun | -3/Testing | Archive Prc. Phase Gun | -3/Testing | Archive Exp. Melee Analysis Suite | -3/Testing | Archive Coolant Network | -3/Testing | Archive Cld. Field Propulsion Drive | -3/Testing | Archive Gravity Flail | -3/Testing | Archive Hvy. Proton Missile Launcher | -3/Testing | Archive Hvy. Wave Gun | -3/Testing | Archive Med. Regenerative Plating | -3/Testing | Hacked Hds. Centrium Leg | -2/Quarantine | Archive Centrium Medium Armor Plating | -2/Protoforge | Archive Adv. Variable Charge Gun | -2/Protoforge | Archive Adv. EM Disruption Field | -2/Protoforge | Archive Thermal Barrier | -2/Protoforge | Archive Centrium Heavy Armor Plating | -2/Protoforge | Archive Hvy. Dispersion Rifle | -2/Protoforge | Archive Imp. Diametric Drive | -2/Protoforge | Archive Proton Burst Cannon | -2/Protoforge | Archive Cld. Phase Cannon | -2/Protoforge | Archive Exp. Flexi-carbon Leg | -2/Protoforge | Archive Tesla Bomb Launcher | -2/Protoforge | Archive Exp. EM Disruption Field | -2/Protoforge | Archive Vibroblade | -2/Protoforge | Archive Robot Schematics ------------------ M-13 Machinist | -10/Materials | Hacked G-67 Veteran | -3/Testing | Archive S-43 Plague | -3/Testing | Archive R-06 Scavenger | -3/Testing | Archive T-07 Excavator | -2/Protoforge | Archive K-01 Serf | -2/Protoforge | Archive A-27 Freighter | -2/Protoforge | Archive B-74 Champion | -2/Protoforge | Archive Fabricated ------------ A-15 Conveyor | x1 | -5/Factory | Preloaded K-01 Serf | x4 | -4/Factory | Preloaded Assault Drone Bay | x1 | -2/Research | Authchip Biometal Heavy Treads | x1 | -2/Protoforge | Preloaded Exp. Optical Array | x1 | -2/Protoforge | Authchip Repaired ---------- Hvy. Antimatter Reactor | 31% | -3/Testing Studied --------- Nuclear Pulse Thruster | -6/Factory | Hacked Cesium-ion Thruster | -6/Factory | Hacked Field Propulsion Array | -4/Factory | Hacked Nuclear Pulse Array | -4/Factory | Hacked Lgt. Ion Engine | -4/Factory | Hacked Hyp. Coil Gun | -3/Research | Hacked Impulse Thruster Array | -3/Testing | Hacked Alien Tech Used ----------------- Integrated Reactor Matter Drive Sigix Broadsword Concept Nanofilaments [Conductive] Subatomic Replicator Supercharged TR Achievements -------------- None Challenges ------------ None Game ------ Seed TiamatTargetMicroactuators Manual? 0 Play Time 07:25:56 Cumulative 1200.5 hours Start 2026.01.02 @ 17:28:17 End 2026.01.03 @ 01:15:08 Sessions 1 Manual Loads 0 Difficulty Rogue Special Mode None Game No. 417 Rogue 412 Adventurer 4 Explorer 1 Win Type - Total 25 Types 13/5/1/2/0/1/0/0/2/1 Lore% 97 Gallery% 96 Achievement% 82 Wizard Run 0 Options --------- Layout 0 ASCII 0 Keyboard 0 Movement Numpad Keybinds 0 Fullscreen 2 Font 18/SmallcapsGlow Map View 76x50 Zoom Use 0% Tactical HUD 1 Map Filters NONE Filters NONE Steam 1 RUN: fd8ff8e3-83a3-448e-aaf8-1c777379ee2f